{"text_format":"3","workbook":"xlsx","n_sheets":4,"sheets":["متعقب الدرجات","الأداء","إعدادات","الحسابات"],"not_rendered":{"defined_names":3,"comments":1},"read":"whole","date_system":"1900"}

{"sheet":"متعقب الدرجات","index":0,"n_rows":14,"n_cols":6,"rows_kept":14}
[null,"أدخل درجاتك هنا"]
[]
[null,null,"الفصل الدراسي","النوع","الوصف","الدرجات"]
[null,null,"الفرنسية الحديثة","الواجب المنزلي","تاريخ الحرب العالمية الثانية",{"v":0.8,"d":"80%"}]
[null,null,"البرمجة المتقدمة بلغة Java","نصف العام",null,{"v":0.75,"d":"75%"}]
[null,null,"الأسبانية","الواجب المنزلي",null,{"v":0.5,"d":"50%"}]
[null,null,"الفيزياء النظرية","الواجب المنزلي",null,{"v":0.95,"d":"95%"}]
[null,null,"الفرنسية الحديثة","الواجب المنزلي","تاريخ الحرب العالمية الأولى",{"v":0.9,"d":"90%"}]
[null,null,"الفرنسية الحديثة","الواجب المنزلي","الصفحات من 30 حتى 41",{"v":0.8,"d":"80%"}]
[null,null,"الإنشاء","المقالة","مقالة حول الإقناع",{"v":0.95,"d":"95%"}]
[null,null,"الرياضيات 1","الواجب المنزلي","الصفحتان 21 و26",{"v":0.8,"d":"80%"}]
[null,null,"الرياضيات 2","الواجب المنزلي","الصفحتان 15 و18",{"v":0.85,"d":"85%"}]
[null,null,"الرياضيات 1","الواجب المنزلي","الصفحات من 34 حتى 36",{"v":0.8,"d":"80%"}]
[null,null,"الرياضيات 2","اختبار",null,{"v":0.95,"d":"95%"}]

{"sheet":"الأداء","index":1,"n_rows":31,"n_cols":8,"rows_kept":31}
[null,"الأداء"]
[]
[null,null,"الإجماليات"]
[null,null,{"$f":"\"الساعات: \"&SUM(tblClasses[الساعات المعتمدة])","v":"الساعات: 24"},{"$f":"AVERAGE(D7:D31)","v":{"v":0.8104761904761906,"d":"81%"}},{"$f":"AVERAGE(E7:E31)","v":{"v":2.7142857142857144,"d":"2.71"}},{"$f":"SUM(F7:F31)","v":{"v":2.625,"d":"2.63"}},{"$f":"IFERROR(HLOOKUP(D4,lstGPAMapping,2),\"\")","v":"B-"}]
[]
[null,null,"الفصول الدراسية","النسبة","متوسط الدرجات","متوسط الدرجات المرجّحة","الحرف","الأداء العام"]
[null,null,{"$f":"الحسابات!C6","v":"الفرنسية الحديثة"},{"$f":"الحسابات!AL6","v":{"v":0.8333333333333334,"d":"83%"}},{"$f":"الحسابات!AM6","v":{"v":3,"d":"3.00"}},{"$f":"IFERROR(E7*إعدادات!D9/SUM(tblClasses[الساعات المعتمدة]),\"\")","v":{"v":0.375,"d":"0.38"}},{"$f":"الحسابات!AN6","v":"B"}]
[null,null,{"$f":"الحسابات!C7","v":"الفيزياء النظرية"},{"$f":"الحسابات!AL7","v":{"v":0.95,"d":"95%"}},{"$f":"الحسابات!AM7","v":{"v":4,"d":"4.00"}},{"$f":"IFERROR(E8*إعدادات!D10/SUM(tblClasses[الساعات المعتمدة]),\"\")","v":{"v":0.5,"d":"0.50"}},{"$f":"الحسابات!AN7","v":"A"}]
[null,null,{"$f":"الحسابات!C8","v":"الرياضيات 1"},{"$f":"الحسابات!AL8","v":{"v":0.8000000000000002,"d":"80%"}},{"$f":"الحسابات!AM8","v":2.67},{"$f":"IFERROR(E9*إعدادات!D11/SUM(tblClasses[الساعات المعتمدة]),\"\")","v":{"v":0.445,"d":"0.45"}},{"$f":"الحسابات!AN8","v":"B-"}]
[null,null,{"$f":"الحسابات!C9","v":"الرياضيات 2"},{"$f":"الحسابات!AL9","v":{"v":0.89,"d":"89%"}},{"$f":"الحسابات!AM9","v":3.33},{"$f":"IFERROR(E10*إعدادات!D12/SUM(tblClasses[الساعات المعتمدة]),\"\")","v":{"v":0.555,"d":"0.56"}},{"$f":"الحسابات!AN9","v":"B+ "}]
[null,null,{"$f":"الحسابات!C10","v":"البرمجة المتقدمة بلغة Java"},{"$f":"الحسابات!AL10","v":{"v":0.7500000000000001,"d":"75%"}},{"$f":"الحسابات!AM10","v":{"v":2,"d":"2.00"}},{"$f":"IFERROR(E11*إعدادات!D13/SUM(tblClasses[الساعات المعتمدة]),\"\")","v":{"v":0.4166666666666667,"d":"0.42"}},{"$f":"الحسابات!AN10","v":"C"}]
[null,null,{"$f":"الحسابات!C11","v":"الأسبانية"},{"$f":"الحسابات!AL11","v":{"v":0.5,"d":"50%"}},{"$f":"الحسابات!AM11","v":{"v":0,"d":"0.00"}},{"$f":"IFERROR(E12*إعدادات!D14/SUM(tblClasses[الساعات المعتمدة]),\"\")","v":{"v":0,"d":"0.00"}},{"$f":"الحسابات!AN11","v":"F"}]
[null,null,{"$f":"الحسابات!C12","v":"الإنشاء"},{"$f":"الحسابات!AL12","v":{"v":0.95,"d":"95%"}},{"$f":"الحسابات!AM12","v":{"v":4,"d":"4.00"}},{"$f":"IFERROR(E13*إعدادات!D15/SUM(tblClasses[الساعات المعتمدة]),\"\")","v":{"v":0.3333333333333333,"d":"0.33"}},{"$f":"الحسابات!AN12","v":"A"}]
[null,null,{"$f":"الحسابات!C13","v":""},{"$f":"الحسابات!AL13","v":""},{"$f":"الحسابات!AM13","v":""},{"$f":"IFERROR(E14*إعدادات!D16/SUM(tblClasses[الساعات المعتمدة]),\"\")","v":""},{"$f":"الحسابات!AN13","v":""}]
[null,null,{"$f":"الحسابات!C14","v":""},{"$f":"الحسابات!AL14","v":""},{"$f":"الحسابات!AM14","v":""},{"$f":"IFERROR(E15*إعدادات!D17/SUM(tblClasses[الساعات المعتمدة]),\"\")","v":""},{"$f":"الحسابات!AN14","v":""}]
[null,null,{"$f":"الحسابات!C15","v":""},{"$f":"الحسابات!AL15","v":""},{"$f":"الحسابات!AM15","v":""},{"$f":"IFERROR(E16*إعدادات!D18/SUM(tblClasses[الساعات المعتمدة]),\"\")","v":""},{"$f":"الحسابات!AN15","v":""}]
[null,null,{"$f":"الحسابات!C16","v":""},{"$f":"الحسابات!AL16","v":""},{"$f":"الحسابات!AM16","v":""},{"$f":"IFERROR(E17*إعدادات!D19/SUM(tblClasses[الساعات المعتمدة]),\"\")","v":""},{"$f":"الحسابات!AN16","v":""}]
[null,null,{"$f":"الحسابات!C17","v":""},{"$f":"الحسابات!AL17","v":""},{"$f":"الحسابات!AM17","v":""},{"$f":"IFERROR(E18*إعدادات!D20/SUM(tblClasses[الساعات المعتمدة]),\"\")","v":""},{"$f":"الحسابات!AN17","v":""}]
[null,null,{"$f":"الحسابات!C18","v":""},{"$f":"الحسابات!AL18","v":""},{"$f":"الحسابات!AM18","v":""},{"$f":"IFERROR(E19*إعدادات!D21/SUM(tblClasses[الساعات المعتمدة]),\"\")","v":""},{"$f":"الحسابات!AN18","v":""}]
[null,null,{"$f":"الحسابات!C19","v":""},{"$f":"الحسابات!AL19","v":""},{"$f":"الحسابات!AM19","v":""},{"$f":"IFERROR(E20*إعدادات!D22/SUM(tblClasses[الساعات المعتمدة]),\"\")","v":""},{"$f":"الحسابات!AN19","v":""}]
[null,null,{"$f":"الحسابات!C20","v":""},{"$f":"الحسابات!AL20","v":""},{"$f":"الحسابات!AM20","v":""},{"$f":"IFERROR(E21*إعدادات!D23/SUM(tblClasses[الساعات المعتمدة]),\"\")","v":""},{"$f":"الحسابات!AN20","v":""}]
[null,null,{"$f":"الحسابات!C21","v":""},{"$f":"الحسابات!AL21","v":""},{"$f":"الحسابات!AM21","v":""},{"$f":"IFERROR(E22*إعدادات!D24/SUM(tblClasses[الساعات المعتمدة]),\"\")","v":""},{"$f":"الحسابات!AN21","v":""}]
[null,null,{"$f":"الحسابات!C22","v":""},{"$f":"الحسابات!AL22","v":""},{"$f":"الحسابات!AM22","v":""},{"$f":"IFERROR(E23*إعدادات!D25/SUM(tblClasses[الساعات المعتمدة]),\"\")","v":""},{"$f":"الحسابات!AN22","v":""}]
[null,null,{"$f":"الحسابات!C23","v":""},{"$f":"الحسابات!AL23","v":""},{"$f":"الحسابات!AM23","v":""},{"$f":"IFERROR(E24*إعدادات!D26/SUM(tblClasses[الساعات المعتمدة]),\"\")","v":""},{"$f":"الحسابات!AN23","v":""}]
[null,null,{"$f":"الحسابات!C24","v":""},{"$f":"الحسابات!AL24","v":""},{"$f":"الحسابات!AM24","v":""},{"$f":"IFERROR(E25*إعدادات!D27/SUM(tblClasses[الساعات المعتمدة]),\"\")","v":""},{"$f":"الحسابات!AN24","v":""}]
[null,null,{"$f":"الحسابات!C25","v":""},{"$f":"الحسابات!AL25","v":""},{"$f":"الحسابات!AM25","v":""},{"$f":"IFERROR(E26*إعدادات!D28/SUM(tblClasses[الساعات المعتمدة]),\"\")","v":""},{"$f":"الحسابات!AN25","v":""}]
[null,null,{"$f":"الحسابات!C26","v":""},{"$f":"الحسابات!AL26","v":""},{"$f":"الحسابات!AM26","v":""},{"$f":"IFERROR(E27*إعدادات!D29/SUM(tblClasses[الساعات المعتمدة]),\"\")","v":""},{"$f":"الحسابات!AN26","v":""}]
[null,null,{"$f":"الحسابات!C27","v":""},{"$f":"الحسابات!AL27","v":""},{"$f":"الحسابات!AM27","v":""},{"$f":"IFERROR(E28*إعدادات!D30/SUM(tblClasses[الساعات المعتمدة]),\"\")","v":""},{"$f":"الحسابات!AN27","v":""}]
[null,null,{"$f":"الحسابات!C28","v":""},{"$f":"الحسابات!AL28","v":""},{"$f":"الحسابات!AM28","v":""},{"$f":"IFERROR(E29*إعدادات!D31/SUM(tblClasses[الساعات المعتمدة]),\"\")","v":""},{"$f":"الحسابات!AN28","v":""}]
[null,null,{"$f":"الحسابات!C29","v":""},{"$f":"الحسابات!AL29","v":""},{"$f":"الحسابات!AM29","v":""},{"$f":"IFERROR(E30*إعدادات!D32/SUM(tblClasses[الساعات المعتمدة]),\"\")","v":""},{"$f":"الحسابات!AN29","v":""}]
[null,null,{"$f":"الحسابات!C30","v":""},{"$f":"الحسابات!AL30","v":""},{"$f":"الحسابات!AM30","v":""},{"$f":"IFERROR(E31*إعدادات!D33/SUM(tblClasses[الساعات المعتمدة]),\"\")","v":""},{"$f":"الحسابات!AN30","v":""}]

{"sheet":"إعدادات","index":2,"n_rows":15,"n_cols":16,"rows_kept":15,"merged":[[5,2,5,15]]}
[null,"إعدادات"]
[null,null,"تعيين الدرجات ومتوسط الدرجات"]
[null,null,"النسبة",{"v":0,"d":"0%"},{"v":0.6,"d":"60%"},{"v":0.63,"d":"63%"},{"v":0.67,"d":"67%"},{"v":0.7,"d":"70%"},{"v":0.73,"d":"73%"},{"v":0.77,"d":"77%"},{"v":0.8,"d":"80%"},{"v":0.83,"d":"83%"},{"v":0.87,"d":"87%"},{"v":0.9,"d":"90%"},{"v":0.93,"d":"93%"},{"v":0.97,"d":"97%"}]
[null,null,"الدرجة ممثلة بحرف","F","D-","D","D+","C-","C","C+","B-","B","B+ ","A-","A","A+"]
[null,null,"متوسط الدرجات",0,0.67,1,1.33,1.67,2,2.33,2.67,3,3.33,3.67,4,4]
[]
[null,null,"الدرجات المرجّحة لما يصل إلى 25 فصلاً دراسياً"]
[null,null,"الفصول الدراسية التي تحضرها","الساعات المعتمدة","الواجب المنزلي","المقالة","اختبار","المشروع","نصف العام","الاختبار النهائي","غير ذلك","إجمالي النسبة"]
[null,null,"الفرنسية الحديثة",{"v":3,"d":"3.0"},{"v":0.1,"d":"10%"},{"v":0.15,"d":"15%"},{"v":0.15,"d":"15%"},{"v":0.1,"d":"10%"},{"v":0.2,"d":"20%"},{"v":0.3,"d":"30%"},null,{"$f":"SUM(tblClasses[[#This Row],[الواجب المنزلي]:[غير ذلك]])","v":{"v":1,"d":"100%"}}]
[null,null,"الفيزياء النظرية",{"v":3,"d":"3.0"},{"v":0.15,"d":"15%"},{"v":0.15,"d":"15%"},{"v":0.1,"d":"10%"},{"v":0.1,"d":"10%"},{"v":0.15,"d":"15%"},{"v":0.3,"d":"30%"},{"v":0.05,"d":"5%"},{"$f":"SUM(tblClasses[[#This Row],[الواجب المنزلي]:[غير ذلك]])","v":{"v":1,"d":"100%"}}]
[null,null,"الرياضيات 1",{"v":4,"d":"4.0"},{"v":0.1,"d":"10%"},{"v":0.15,"d":"15%"},{"v":0.15,"d":"15%"},{"v":0.1,"d":"10%"},{"v":0.2,"d":"20%"},{"v":0.3,"d":"30%"},null,{"$f":"SUM(tblClasses[[#This Row],[الواجب المنزلي]:[غير ذلك]])","v":{"v":1,"d":"100%"}}]
[null,null,"الرياضيات 2",{"v":4,"d":"4.0"},{"v":0.15,"d":"15%"},{"v":0.15,"d":"15%"},{"v":0.1,"d":"10%"},{"v":0.1,"d":"10%"},{"v":0.15,"d":"15%"},{"v":0.3,"d":"30%"},{"v":0.05,"d":"5%"},{"$f":"SUM(tblClasses[[#This Row],[الواجب المنزلي]:[غير ذلك]])","v":{"v":1,"d":"100%"}}]
[null,null,"البرمجة المتقدمة بلغة Java",{"v":5,"d":"5.0"},{"v":0.15,"d":"15%"},{"v":0.15,"d":"15%"},{"v":0.1,"d":"10%"},{"v":0.1,"d":"10%"},{"v":0.2,"d":"20%"},{"v":0.3,"d":"30%"},null,{"$f":"SUM(tblClasses[[#This Row],[الواجب المنزلي]:[غير ذلك]])","v":{"v":1,"d":"100%"}}]
[null,null,"الأسبانية",{"v":3,"d":"3.0"},{"v":0.1,"d":"10%"},{"v":0.15,"d":"15%"},{"v":0.17,"d":"17%"},{"v":0.13,"d":"13%"},{"v":0.2,"d":"20%"},{"v":0.2,"d":"20%"},{"v":0.05,"d":"5%"},{"$f":"SUM(tblClasses[[#This Row],[الواجب المنزلي]:[غير ذلك]])","v":{"v":1,"d":"100%"}}]
[null,null,"الإنشاء",{"v":2,"d":"2.0"},{"v":0.15,"d":"15%"},{"v":0.15,"d":"15%"},{"v":0.12,"d":"12%"},{"v":0.15,"d":"15%"},{"v":0.15,"d":"15%"},{"v":0.25,"d":"25%"},{"v":0.03,"d":"3%"},{"$f":"SUM(tblClasses[[#This Row],[الواجب المنزلي]:[غير ذلك]])","v":{"v":1,"d":"100%"}}]

{"sheet":"الحسابات","index":3,"n_rows":657,"n_cols":40,"rows_kept":657,"hidden":true}
[null,"الحسابات"]
[null,null,"توفر ورقة العمل هذه حسابات الدرجات ومتوسط الدرجات ويجب أن تظل مخفية. قد يؤدي أي تغيير في هذه الورقة إلى حدوث أخطاء."]
[]
[null,null,"قائمة الفصول الدراسية الحالية","الدرجات (من 1)",{"$nulls":24},"حساب الدرجات"]
[null,null,"الفصل الدراسي",1,2,3,4,5,6,7,8,9,10,11,12,13,14,15,16,17,18,19,20,21,22,23,24,25,{"$f":"tblClasses[[#Headers],[الواجب المنزلي]]","v":"الواجب المنزلي"},{"$f":"tblClasses[[#Headers],[المقالة]]","v":"المقالة"},{"$f":"tblClasses[[#Headers],[اختبار]]","v":"اختبار"},{"$f":"tblClasses[[#Headers],[المشروع]]","v":"المشروع"},{"$f":"tblClasses[[#Headers],[نصف العام]]","v":"نصف العام"},{"$f":"tblClasses[[#Headers],[الاختبار النهائي]]","v":"الاختبار النهائي"},{"$f":"tblClasses[[#Headers],[غير ذلك]]","v":"غير ذلك"},"الإجمالي","إجمالي النقاط المحتملة","نسبة الإجمالي","الدرجة","الدرجة ممثلة بحرف"]
[null,null,{"$f":"IF(إعدادات!C9=\"\",\"\",إعدادات!C9)","v":"الفرنسية الحديثة"},{"$f":"IFERROR(INDEX(tblClassScores[],MATCH($C6:$C30&D$5:AB$5,الحسابات!$C$33:$C$657,0),4),\"\")","v":{"v":0.8,"d":"80%"}},{"v":0.9,"d":"90%"},{"v":0.8,"d":"80%"},"","","","","","","","","","","","","","","","","","","","","","",{"$f":"IFERROR(AVERAGEIFS(tblClassScores[الدرجات],tblClassScores[الفصل الدراسي],الحسابات!$C6,tblClassScores[النوع],الحسابات!AC$5)*إعدادات!E9,\"\")","v":0.08333333333333334},{"$f":"IFERROR(AVERAGEIFS(tblClassScores[الدرجات],tblClassScores[الفصل الدراسي],الحسابات!$C6,tblClassScores[النوع],الحسابات!AD$5)*إعدادات!F9,\"\")","v":""},{"$f":"IFERROR(AVERAGEIFS(tblClassScores[الدرجات],tblClassScores[الفصل الدراسي],الحسابات!$C6,tblClassScores[النوع],الحسابات!AE$5)*إعدادات!G9,\"\")","v":""},{"$f":"IFERROR(AVERAGEIFS(tblClassScores[الدرجات],tblClassScores[الفصل الدراسي],الحسابات!$C6,tblClassScores[النوع],الحسابات!AF$5)*إعدادات!H9,\"\")","v":""},{"$f":"IFERROR(AVERAGEIFS(tblClassScores[الدرجات],tblClassScores[الفصل الدراسي],الحسابات!$C6,tblClassScores[النوع],الحسابات!AG$5)*إعدادات!I9,\"\")","v":""},{"$f":"IFERROR(AVERAGEIFS(tblClassScores[الدرجات],tblClassScores[الفصل الدراسي],الحسابات!$C6,tblClassScores[النوع],الحسابات!AH$5)*إعدادات!J9,\"\")","v":""},{"$f":"IFERROR(AVERAGEIFS(tblClassScores[الدرجات],tblClassScores[الفصل الدراسي],الحسابات!$C6,tblClassScores[النوع],الحسابات!AI$5)*إعدادات!K9,\"\")","v":""},{"$f":"SUM(AC6:AI6)","v":0.08333333333333334},{"$f":"SUMIFS(إعدادات!E9:K9,الحسابات!AC6:AI6,\">0\")","v":0.1},{"$f":"IFERROR(AJ6/AK6,\"\")","v":{"v":0.8333333333333334,"d":"83%"}},{"$f":"IFERROR(HLOOKUP(AL6,lstGPAMapping,3),\"\")","v":3},{"$f":"IFERROR(HLOOKUP(AL6,lstGPAMapping,2),\"\")","v":"B"}]
[null,null,{"$f":"IF(إعدادات!C10=\"\",\"\",إعدادات!C10)","v":"الفيزياء النظرية"},{"v":0.95,"d":"95%"},"","","","","","","","","","","","","","","","","","","","","","","","",{"$f":"IFERROR(AVERAGEIFS(tblClassScores[الدرجات],tblClassScores[الفصل الدراسي],الحسابات!$C7,tblClassScores[النوع],الحسابات!AC$5)*إعدادات!E10,\"\")","v":0.1425},{"$f":"IFERROR(AVERAGEIFS(tblClassScores[الدرجات],tblClassScores[الفصل الدراسي],الحسابات!$C7,tblClassScores[النوع],الحسابات!AD$5)*إعدادات!F10,\"\")","v":""},{"$f":"IFERROR(AVERAGEIFS(tblClassScores[الدرجات],tblClassScores[الفصل الدراسي],الحسابات!$C7,tblClassScores[النوع],الحسابات!AE$5)*إعدادات!G10,\"\")","v":""},{"$f":"IFERROR(AVERAGEIFS(tblClassScores[الدرجات],tblClassScores[الفصل الدراسي],الحسابات!$C7,tblClassScores[النوع],الحسابات!AF$5)*إعدادات!H10,\"\")","v":""},{"$f":"IFERROR(AVERAGEIFS(tblClassScores[الدرجات],tblClassScores[الفصل الدراسي],الحسابات!$C7,tblClassScores[النوع],الحسابات!AG$5)*إعدادات!I10,\"\")","v":""},{"$f":"IFERROR(AVERAGEIFS(tblClassScores[الدرجات],tblClassScores[الفصل الدراسي],الحسابات!$C7,tblClassScores[النوع],الحسابات!AH$5)*إعدادات!J10,\"\")","v":""},{"$f":"IFERROR(AVERAGEIFS(tblClassScores[الدرجات],tblClassScores[الفصل الدراسي],الحسابات!$C7,tblClassScores[النوع],الحسابات!AI$5)*إعدادات!K10,\"\")","v":""},{"$f":"SUM(AC7:AI7)","v":0.1425},{"$f":"SUMIFS(إعدادات!E10:K10,الحسابات!AC7:AI7,\">0\")","v":0.15},{"$f":"IFERROR(AJ7/AK7,\"\")","v":{"v":0.95,"d":"95%"}},4,"A"]
[null,null,{"$f":"IF(إعدادات!C11=\"\",\"\",إعدادات!C11)","v":"الرياضيات 1"},{"v":0.8,"d":"80%"},{"v":0.8,"d":"80%"},"","","","","","","","","","","","","","","","","","","","","","","",{"$f":"IFERROR(AVERAGEIFS(tblClassScores[الدرجات],tblClassScores[الفصل الدراسي],الحسابات!$C8,tblClassScores[النوع],الحسابات!AC$5)*إعدادات!E11,\"\")","v":0.08000000000000002},{"$f":"IFERROR(AVERAGEIFS(tblClassScores[الدرجات],tblClassScores[الفصل الدراسي],الحسابات!$C8,tblClassScores[النوع],الحسابات!AD$5)*إعدادات!F11,\"\")","v":""},{"$f":"IFERROR(AVERAGEIFS(tblClassScores[الدرجات],tblClassScores[الفصل الدراسي],الحسابات!$C8,tblClassScores[النوع],الحسابات!AE$5)*إعدادات!G11,\"\")","v":""},{"$f":"IFERROR(AVERAGEIFS(tblClassScores[الدرجات],tblClassScores[الفصل الدراسي],الحسابات!$C8,tblClassScores[النوع],الحسابات!AF$5)*إعدادات!H11,\"\")","v":""},{"$f":"IFERROR(AVERAGEIFS(tblClassScores[الدرجات],tblClassScores[الفصل الدراسي],الحسابات!$C8,tblClassScores[النوع],الحسابات!AG$5)*إعدادات!I11,\"\")","v":""},{"$f":"IFERROR(AVERAGEIFS(tblClassScores[الدرجات],tblClassScores[الفصل الدراسي],الحسابات!$C8,tblClassScores[النوع],الحسابات!AH$5)*إعدادات!J11,\"\")","v":""},{"$f":"IFERROR(AVERAGEIFS(tblClassScores[الدرجات],tblClassScores[الفصل الدراسي],الحسابات!$C8,tblClassScores[النوع],الحسابات!AI$5)*إعدادات!K11,\"\")","v":""},0.08000000000000002,{"$f":"SUMIFS(إعدادات!E11:K11,الحسابات!AC8:AI8,\">0\")","v":0.1},{"v":0.8000000000000002,"d":"80%"},2.67,{"$f":"IFERROR(HLOOKUP(AL8,lstGPAMapping,2),\"\")","v":"B-"}]
[null,null,{"$f":"IF(إعدادات!C12=\"\",\"\",إعدادات!C12)","v":"الرياضيات 2"},{"v":0.85,"d":"85%"},{"v":0.95,"d":"95%"},"","","","","","","","","","","","","","","","","","","","","","","",{"$f":"IFERROR(AVERAGEIFS(tblClassScores[الدرجات],tblClassScores[الفصل الدراسي],الحسابات!$C9,tblClassScores[النوع],الحسابات!AC$5)*إعدادات!E12,\"\")","v":0.1275},{"$f":"IFERROR(AVERAGEIFS(tblClassScores[الدرجات],tblClassScores[الفصل الدراسي],الحسابات!$C9,tblClassScores[النوع],الحسابات!AD$5)*إعدادات!F12,\"\")","v":""},{"$f":"IFERROR(AVERAGEIFS(tblClassScores[الدرجات],tblClassScores[الفصل الدراسي],الحسابات!$C9,tblClassScores[النوع],الحسابات!AE$5)*إعدادات!G12,\"\")","v":0.095},{"$f":"IFERROR(AVERAGEIFS(tblClassScores[الدرجات],tblClassScores[الفصل الدراسي],الحسابات!$C9,tblClassScores[النوع],الحسابات!AF$5)*إعدادات!H12,\"\")","v":""},{"$f":"IFERROR(AVERAGEIFS(tblClassScores[الدرجات],tblClassScores[الفصل الدراسي],الحسابات!$C9,tblClassScores[النوع],الحسابات!AG$5)*إعدادات!I12,\"\")","v":""},{"$f":"IFERROR(AVERAGEIFS(tblClassScores[الدرجات],tblClassScores[الفصل الدراسي],الحسابات!$C9,tblClassScores[النوع],الحسابات!AH$5)*إعدادات!J12,\"\")","v":""},{"$f":"IFERROR(AVERAGEIFS(tblClassScores[الدرجات],tblClassScores[الفصل الدراسي],الحسابات!$C9,tblClassScores[النوع],الحسابات!AI$5)*إعدادات!K12,\"\")","v":""},0.2225,{"$f":"SUMIFS(إعدادات!E12:K12,الحسابات!AC9:AI9,\">0\")","v":0.25},{"v":0.89,"d":"89%"},3.33,"B+ "]
[null,null,{"$f":"IF(إعدادات!C13=\"\",\"\",إعدادات!C13)","v":"البرمجة المتقدمة بلغة Java"},{"v":0.75,"d":"75%"},"","","","","","","","","","","","","","","","","","","","","","","","",{"$f":"IFERROR(AVERAGEIFS(tblClassScores[الدرجات],tblClassScores[الفصل الدراسي],الحسابات!$C10,tblClassScores[النوع],الحسابات!AC$5)*إعدادات!E13,\"\")","v":""},{"$f":"IFERROR(AVERAGEIFS(tblClassScores[الدرجات],tblClassScores[الفصل الدراسي],الحسابات!$C10,tblClassScores[النوع],الحسابات!AD$5)*إعدادات!F13,\"\")","v":""},{"$f":"IFERROR(AVERAGEIFS(tblClassScores[الدرجات],tblClassScores[الفصل الدراسي],الحسابات!$C10,tblClassScores[النوع],الحسابات!AE$5)*إعدادات!G13,\"\")","v":""},{"$f":"IFERROR(AVERAGEIFS(tblClassScores[الدرجات],tblClassScores[الفصل الدراسي],الحسابات!$C10,tblClassScores[النوع],الحسابات!AF$5)*إعدادات!H13,\"\")","v":""},{"$f":"IFERROR(AVERAGEIFS(tblClassScores[الدرجات],tblClassScores[الفصل الدراسي],الحسابات!$C10,tblClassScores[النوع],الحسابات!AG$5)*إعدادات!I13,\"\")","v":0.15000000000000002},{"$f":"IFERROR(AVERAGEIFS(tblClassScores[الدرجات],tblClassScores[الفصل الدراسي],الحسابات!$C10,tblClassScores[النوع],الحسابات!AH$5)*إعدادات!J13,\"\")","v":""},{"$f":"IFERROR(AVERAGEIFS(tblClassScores[الدرجات],tblClassScores[الفصل الدراسي],الحسابات!$C10,tblClassScores[النوع],الحسابات!AI$5)*إعدادات!K13,\"\")","v":""},0.15000000000000002,{"$f":"SUMIFS(إعدادات!E13:K13,الحسابات!AC10:AI10,\">0\")","v":0.2},{"v":0.7500000000000001,"d":"75%"},2,"C"]
[null,null,{"$f":"IF(إعدادات!C14=\"\",\"\",إعدادات!C14)","v":"الأسبانية"},{"v":0.5,"d":"50%"},"","","","","","","","","","","","","","","","","","","","","","","","",{"$f":"IFERROR(AVERAGEIFS(tblClassScores[الدرجات],tblClassScores[الفصل الدراسي],الحسابات!$C11,tblClassScores[النوع],الحسابات!AC$5)*إعدادات!E14,\"\")","v":0.05},{"$f":"IFERROR(AVERAGEIFS(tblClassScores[الدرجات],tblClassScores[الفصل الدراسي],الحسابات!$C11,tblClassScores[النوع],الحسابات!AD$5)*إعدادات!F14,\"\")","v":""},{"$f":"IFERROR(AVERAGEIFS(tblClassScores[الدرجات],tblClassScores[الفصل الدراسي],الحسابات!$C11,tblClassScores[النوع],الحسابات!AE$5)*إعدادات!G14,\"\")","v":""},{"$f":"IFERROR(AVERAGEIFS(tblClassScores[الدرجات],tblClassScores[الفصل الدراسي],الحسابات!$C11,tblClassScores[النوع],الحسابات!AF$5)*إعدادات!H14,\"\")","v":""},{"$f":"IFERROR(AVERAGEIFS(tblClassScores[الدرجات],tblClassScores[الفصل الدراسي],الحسابات!$C11,tblClassScores[النوع],الحسابات!AG$5)*إعدادات!I14,\"\")","v":""},{"$f":"IFERROR(AVERAGEIFS(tblClassScores[الدرجات],tblClassScores[الفصل الدراسي],الحسابات!$C11,tblClassScores[النوع],الحسابات!AH$5)*إعدادات!J14,\"\")","v":""},{"$f":"IFERROR(AVERAGEIFS(tblClassScores[الدرجات],tblClassScores[الفصل الدراسي],الحسابات!$C11,tblClassScores[النوع],الحسابات!AI$5)*إعدادات!K14,\"\")","v":""},0.05,{"$f":"SUMIFS(إعدادات!E14:K14,الحسابات!AC11:AI11,\">0\")","v":0.1},{"v":0.5,"d":"50%"},0,"F"]
[null,null,{"$f":"IF(إعدادات!C15=\"\",\"\",إعدادات!C15)","v":"الإنشاء"},{"v":0.95,"d":"95%"},"","","","","","","","","","","","","","","","","","","","","","","","",{"$f":"IFERROR(AVERAGEIFS(tblClassScores[الدرجات],tblClassScores[الفصل الدراسي],الحسابات!$C12,tblClassScores[النوع],الحسابات!AC$5)*إعدادات!E15,\"\")","v":""},{"$f":"IFERROR(AVERAGEIFS(tblClassScores[الدرجات],tblClassScores[الفصل الدراسي],الحسابات!$C12,tblClassScores[النوع],الحسابات!AD$5)*إعدادات!F15,\"\")","v":0.1425},{"$f":"IFERROR(AVERAGEIFS(tblClassScores[الدرجات],tblClassScores[الفصل الدراسي],الحسابات!$C12,tblClassScores[النوع],الحسابات!AE$5)*إعدادات!G15,\"\")","v":""},{"$f":"IFERROR(AVERAGEIFS(tblClassScores[الدرجات],tblClassScores[الفصل الدراسي],الحسابات!$C12,tblClassScores[النوع],الحسابات!AF$5)*إعدادات!H15,\"\")","v":""},{"$f":"IFERROR(AVERAGEIFS(tblClassScores[الدرجات],tblClassScores[الفصل الدراسي],الحسابات!$C12,tblClassScores[النوع],الحسابات!AG$5)*إعدادات!I15,\"\")","v":""},{"$f":"IFERROR(AVERAGEIFS(tblClassScores[الدرجات],tblClassScores[الفصل الدراسي],الحسابات!$C12,tblClassScores[النوع],الحسابات!AH$5)*إعدادات!J15,\"\")","v":""},{"$f":"IFERROR(AVERAGEIFS(tblClassScores[الدرجات],tblClassScores[الفصل الدراسي],الحسابات!$C12,tblClassScores[النوع],الحسابات!AI$5)*إعدادات!K15,\"\")","v":""},0.1425,{"$f":"SUMIFS(إعدادات!E15:K15,الحسابات!AC12:AI12,\">0\")","v":0.15},{"v":0.95,"d":"95%"},4,"A"]
[null,null,{"$f":"IF(إعدادات!C16=\"\",\"\",إعدادات!C16)","v":""},"","","","","","","","","","","","","","","","","","","","","","","","","",{"$f":"IFERROR(AVERAGEIFS(tblClassScores[الدرجات],tblClassScores[الفصل الدراسي],الحسابات!$C13,tblClassScores[النوع],الحسابات!AC$5)*إعدادات!E16,\"\")","v":""},{"$f":"IFERROR(AVERAGEIFS(tblClassScores[الدرجات],tblClassScores[الفصل الدراسي],الحسابات!$C13,tblClassScores[النوع],الحسابات!AD$5)*إعدادات!F16,\"\")","v":""},{"$f":"IFERROR(AVERAGEIFS(tblClassScores[الدرجات],tblClassScores[الفصل الدراسي],الحسابات!$C13,tblClassScores[النوع],الحسابات!AE$5)*إعدادات!G16,\"\")","v":""},{"$f":"IFERROR(AVERAGEIFS(tblClassScores[الدرجات],tblClassScores[الفصل الدراسي],الحسابات!$C13,tblClassScores[النوع],الحسابات!AF$5)*إعدادات!H16,\"\")","v":""},{"$f":"IFERROR(AVERAGEIFS(tblClassScores[الدرجات],tblClassScores[الفصل الدراسي],الحسابات!$C13,tblClassScores[النوع],الحسابات!AG$5)*إعدادات!I16,\"\")","v":""},{"$f":"IFERROR(AVERAGEIFS(tblClassScores[الدرجات],tblClassScores[الفصل الدراسي],الحسابات!$C13,tblClassScores[النوع],الحسابات!AH$5)*إعدادات!J16,\"\")","v":""},{"$f":"IFERROR(AVERAGEIFS(tblClassScores[الدرجات],tblClassScores[الفصل الدراسي],الحسابات!$C13,tblClassScores[النوع],الحسابات!AI$5)*إعدادات!K16,\"\")","v":""},0,{"$f":"SUMIFS(إعدادات!E16:K16,الحسابات!AC13:AI13,\">0\")","v":0},"","",""]
[null,null,{"$f":"IF(إعدادات!C17=\"\",\"\",إعدادات!C17)","v":""},"","","","","","","","","","","","","","","","","","","","","","","","","",{"$f":"IFERROR(AVERAGEIFS(tblClassScores[الدرجات],tblClassScores[الفصل الدراسي],الحسابات!$C14,tblClassScores[النوع],الحسابات!AC$5)*إعدادات!E17,\"\")","v":""},{"$f":"IFERROR(AVERAGEIFS(tblClassScores[الدرجات],tblClassScores[الفصل الدراسي],الحسابات!$C14,tblClassScores[النوع],الحسابات!AD$5)*إعدادات!F17,\"\")","v":""},{"$f":"IFERROR(AVERAGEIFS(tblClassScores[الدرجات],tblClassScores[الفصل الدراسي],الحسابات!$C14,tblClassScores[النوع],الحسابات!AE$5)*إعدادات!G17,\"\")","v":""},{"$f":"IFERROR(AVERAGEIFS(tblClassScores[الدرجات],tblClassScores[الفصل الدراسي],الحسابات!$C14,tblClassScores[النوع],الحسابات!AF$5)*إعدادات!H17,\"\")","v":""},{"$f":"IFERROR(AVERAGEIFS(tblClassScores[الدرجات],tblClassScores[الفصل الدراسي],الحسابات!$C14,tblClassScores[النوع],الحسابات!AG$5)*إعدادات!I17,\"\")","v":""},{"$f":"IFERROR(AVERAGEIFS(tblClassScores[الدرجات],tblClassScores[الفصل الدراسي],الحسابات!$C14,tblClassScores[النوع],الحسابات!AH$5)*إعدادات!J17,\"\")","v":""},{"$f":"IFERROR(AVERAGEIFS(tblClassScores[الدرجات],tblClassScores[الفصل الدراسي],الحسابات!$C14,tblClassScores[النوع],الحسابات!AI$5)*إعدادات!K17,\"\")","v":""},0,{"$f":"SUMIFS(إعدادات!E17:K17,الحسابات!AC14:AI14,\">0\")","v":0},"","",""]
[null,null,{"$f":"IF(إعدادات!C18=\"\",\"\",إعدادات!C18)","v":""},"","","","","","","","","","","","","","","","","","","","","","","","","",{"$f":"IFERROR(AVERAGEIFS(tblClassScores[الدرجات],tblClassScores[الفصل الدراسي],الحسابات!$C15,tblClassScores[النوع],الحسابات!AC$5)*إعدادات!E18,\"\")","v":""},{"$f":"IFERROR(AVERAGEIFS(tblClassScores[الدرجات],tblClassScores[الفصل الدراسي],الحسابات!$C15,tblClassScores[النوع],الحسابات!AD$5)*إعدادات!F18,\"\")","v":""},{"$f":"IFERROR(AVERAGEIFS(tblClassScores[الدرجات],tblClassScores[الفصل الدراسي],الحسابات!$C15,tblClassScores[النوع],الحسابات!AE$5)*إعدادات!G18,\"\")","v":""},{"$f":"IFERROR(AVERAGEIFS(tblClassScores[الدرجات],tblClassScores[الفصل الدراسي],الحسابات!$C15,tblClassScores[النوع],الحسابات!AF$5)*إعدادات!H18,\"\")","v":""},{"$f":"IFERROR(AVERAGEIFS(tblClassScores[الدرجات],tblClassScores[الفصل الدراسي],الحسابات!$C15,tblClassScores[النوع],الحسابات!AG$5)*إعدادات!I18,\"\")","v":""},{"$f":"IFERROR(AVERAGEIFS(tblClassScores[الدرجات],tblClassScores[الفصل الدراسي],الحسابات!$C15,tblClassScores[النوع],الحسابات!AH$5)*إعدادات!J18,\"\")","v":""},{"$f":"IFERROR(AVERAGEIFS(tblClassScores[الدرجات],tblClassScores[الفصل الدراسي],الحسابات!$C15,tblClassScores[النوع],الحسابات!AI$5)*إعدادات!K18,\"\")","v":""},0,{"$f":"SUMIFS(إعدادات!E18:K18,الحسابات!AC15:AI15,\">0\")","v":0},"","",""]
[null,null,{"$f":"IF(إعدادات!C19=\"\",\"\",إعدادات!C19)","v":""},"","","","","","","","","","","","","","","","","","","","","","","","","",{"$f":"IFERROR(AVERAGEIFS(tblClassScores[الدرجات],tblClassScores[الفصل الدراسي],الحسابات!$C16,tblClassScores[النوع],الحسابات!AC$5)*إعدادات!E19,\"\")","v":""},{"$f":"IFERROR(AVERAGEIFS(tblClassScores[الدرجات],tblClassScores[الفصل الدراسي],الحسابات!$C16,tblClassScores[النوع],الحسابات!AD$5)*إعدادات!F19,\"\")","v":""},{"$f":"IFERROR(AVERAGEIFS(tblClassScores[الدرجات],tblClassScores[الفصل الدراسي],الحسابات!$C16,tblClassScores[النوع],الحسابات!AE$5)*إعدادات!G19,\"\")","v":""},{"$f":"IFERROR(AVERAGEIFS(tblClassScores[الدرجات],tblClassScores[الفصل الدراسي],الحسابات!$C16,tblClassScores[النوع],الحسابات!AF$5)*إعدادات!H19,\"\")","v":""},{"$f":"IFERROR(AVERAGEIFS(tblClassScores[الدرجات],tblClassScores[الفصل الدراسي],الحسابات!$C16,tblClassScores[النوع],الحسابات!AG$5)*إعدادات!I19,\"\")","v":""},{"$f":"IFERROR(AVERAGEIFS(tblClassScores[الدرجات],tblClassScores[الفصل الدراسي],الحسابات!$C16,tblClassScores[النوع],الحسابات!AH$5)*إعدادات!J19,\"\")","v":""},{"$f":"IFERROR(AVERAGEIFS(tblClassScores[الدرجات],tblClassScores[الفصل الدراسي],الحسابات!$C16,tblClassScores[النوع],الحسابات!AI$5)*إعدادات!K19,\"\")","v":""},0,{"$f":"SUMIFS(إعدادات!E19:K19,الحسابات!AC16:AI16,\">0\")","v":0},"","",""]
[null,null,{"$f":"IF(إعدادات!C20=\"\",\"\",إعدادات!C20)","v":""},"","","","","","","","","","","","","","","","","","","","","","","","","",{"$f":"IFERROR(AVERAGEIFS(tblClassScores[الدرجات],tblClassScores[الفصل الدراسي],الحسابات!$C17,tblClassScores[النوع],الحسابات!AC$5)*إعدادات!E20,\"\")","v":""},{"$f":"IFERROR(AVERAGEIFS(tblClassScores[الدرجات],tblClassScores[الفصل الدراسي],الحسابات!$C17,tblClassScores[النوع],الحسابات!AD$5)*إعدادات!F20,\"\")","v":""},{"$f":"IFERROR(AVERAGEIFS(tblClassScores[الدرجات],tblClassScores[الفصل الدراسي],الحسابات!$C17,tblClassScores[النوع],الحسابات!AE$5)*إعدادات!G20,\"\")","v":""},{"$f":"IFERROR(AVERAGEIFS(tblClassScores[الدرجات],tblClassScores[الفصل الدراسي],الحسابات!$C17,tblClassScores[النوع],الحسابات!AF$5)*إعدادات!H20,\"\")","v":""},{"$f":"IFERROR(AVERAGEIFS(tblClassScores[الدرجات],tblClassScores[الفصل الدراسي],الحسابات!$C17,tblClassScores[النوع],الحسابات!AG$5)*إعدادات!I20,\"\")","v":""},{"$f":"IFERROR(AVERAGEIFS(tblClassScores[الدرجات],tblClassScores[الفصل الدراسي],الحسابات!$C17,tblClassScores[النوع],الحسابات!AH$5)*إعدادات!J20,\"\")","v":""},{"$f":"IFERROR(AVERAGEIFS(tblClassScores[الدرجات],tblClassScores[الفصل الدراسي],الحسابات!$C17,tblClassScores[النوع],الحسابات!AI$5)*إعدادات!K20,\"\")","v":""},0,{"$f":"SUMIFS(إعدادات!E20:K20,الحسابات!AC17:AI17,\">0\")","v":0},"","",""]
[null,null,{"$f":"IF(إعدادات!C21=\"\",\"\",إعدادات!C21)","v":""},"","","","","","","","","","","","","","","","","","","","","","","","","",{"$f":"IFERROR(AVERAGEIFS(tblClassScores[الدرجات],tblClassScores[الفصل الدراسي],الحسابات!$C18,tblClassScores[النوع],الحسابات!AC$5)*إعدادات!E21,\"\")","v":""},{"$f":"IFERROR(AVERAGEIFS(tblClassScores[الدرجات],tblClassScores[الفصل الدراسي],الحسابات!$C18,tblClassScores[النوع],الحسابات!AD$5)*إعدادات!F21,\"\")","v":""},{"$f":"IFERROR(AVERAGEIFS(tblClassScores[الدرجات],tblClassScores[الفصل الدراسي],الحسابات!$C18,tblClassScores[النوع],الحسابات!AE$5)*إعدادات!G21,\"\")","v":""},{"$f":"IFERROR(AVERAGEIFS(tblClassScores[الدرجات],tblClassScores[الفصل الدراسي],الحسابات!$C18,tblClassScores[النوع],الحسابات!AF$5)*إعدادات!H21,\"\")","v":""},{"$f":"IFERROR(AVERAGEIFS(tblClassScores[الدرجات],tblClassScores[الفصل الدراسي],الحسابات!$C18,tblClassScores[النوع],الحسابات!AG$5)*إعدادات!I21,\"\")","v":""},{"$f":"IFERROR(AVERAGEIFS(tblClassScores[الدرجات],tblClassScores[الفصل الدراسي],الحسابات!$C18,tblClassScores[النوع],الحسابات!AH$5)*إعدادات!J21,\"\")","v":""},{"$f":"IFERROR(AVERAGEIFS(tblClassScores[الدرجات],tblClassScores[الفصل الدراسي],الحسابات!$C18,tblClassScores[النوع],الحسابات!AI$5)*إعدادات!K21,\"\")","v":""},0,{"$f":"SUMIFS(إعدادات!E21:K21,الحسابات!AC18:AI18,\">0\")","v":0},"","",""]
[null,null,{"$f":"IF(إعدادات!C22=\"\",\"\",إعدادات!C22)","v":""},"","","","","","","","","","","","","","","","","","","","","","","","","",{"$f":"IFERROR(AVERAGEIFS(tblClassScores[الدرجات],tblClassScores[الفصل الدراسي],الحسابات!$C19,tblClassScores[النوع],الحسابات!AC$5)*إعدادات!E22,\"\")","v":""},{"$f":"IFERROR(AVERAGEIFS(tblClassScores[الدرجات],tblClassScores[الفصل الدراسي],الحسابات!$C19,tblClassScores[النوع],الحسابات!AD$5)*إعدادات!F22,\"\")","v":""},{"$f":"IFERROR(AVERAGEIFS(tblClassScores[الدرجات],tblClassScores[الفصل الدراسي],الحسابات!$C19,tblClassScores[النوع],الحسابات!AE$5)*إعدادات!G22,\"\")","v":""},{"$f":"IFERROR(AVERAGEIFS(tblClassScores[الدرجات],tblClassScores[الفصل الدراسي],الحسابات!$C19,tblClassScores[النوع],الحسابات!AF$5)*إعدادات!H22,\"\")","v":""},{"$f":"IFERROR(AVERAGEIFS(tblClassScores[الدرجات],tblClassScores[الفصل الدراسي],الحسابات!$C19,tblClassScores[النوع],الحسابات!AG$5)*إعدادات!I22,\"\")","v":""},{"$f":"IFERROR(AVERAGEIFS(tblClassScores[الدرجات],tblClassScores[الفصل الدراسي],الحسابات!$C19,tblClassScores[النوع],الحسابات!AH$5)*إعدادات!J22,\"\")","v":""},{"$f":"IFERROR(AVERAGEIFS(tblClassScores[الدرجات],tblClassScores[الفصل الدراسي],الحسابات!$C19,tblClassScores[النوع],الحسابات!AI$5)*إعدادات!K22,\"\")","v":""},0,{"$f":"SUMIFS(إعدادات!E22:K22,الحسابات!AC19:AI19,\">0\")","v":0},"","",""]
[null,null,{"$f":"IF(إعدادات!C23=\"\",\"\",إعدادات!C23)","v":""},"","","","","","","","","","","","","","","","","","","","","","","","","",{"$f":"IFERROR(AVERAGEIFS(tblClassScores[الدرجات],tblClassScores[الفصل الدراسي],الحسابات!$C20,tblClassScores[النوع],الحسابات!AC$5)*إعدادات!E23,\"\")","v":""},{"$f":"IFERROR(AVERAGEIFS(tblClassScores[الدرجات],tblClassScores[الفصل الدراسي],الحسابات!$C20,tblClassScores[النوع],الحسابات!AD$5)*إعدادات!F23,\"\")","v":""},{"$f":"IFERROR(AVERAGEIFS(tblClassScores[الدرجات],tblClassScores[الفصل الدراسي],الحسابات!$C20,tblClassScores[النوع],الحسابات!AE$5)*إعدادات!G23,\"\")","v":""},{"$f":"IFERROR(AVERAGEIFS(tblClassScores[الدرجات],tblClassScores[الفصل الدراسي],الحسابات!$C20,tblClassScores[النوع],الحسابات!AF$5)*إعدادات!H23,\"\")","v":""},{"$f":"IFERROR(AVERAGEIFS(tblClassScores[الدرجات],tblClassScores[الفصل الدراسي],الحسابات!$C20,tblClassScores[النوع],الحسابات!AG$5)*إعدادات!I23,\"\")","v":""},{"$f":"IFERROR(AVERAGEIFS(tblClassScores[الدرجات],tblClassScores[الفصل الدراسي],الحسابات!$C20,tblClassScores[النوع],الحسابات!AH$5)*إعدادات!J23,\"\")","v":""},{"$f":"IFERROR(AVERAGEIFS(tblClassScores[الدرجات],tblClassScores[الفصل الدراسي],الحسابات!$C20,tblClassScores[النوع],الحسابات!AI$5)*إعدادات!K23,\"\")","v":""},0,{"$f":"SUMIFS(إعدادات!E23:K23,الحسابات!AC20:AI20,\">0\")","v":0},"","",""]
[null,null,{"$f":"IF(إعدادات!C24=\"\",\"\",إعدادات!C24)","v":""},"","","","","","","","","","","","","","","","","","","","","","","","","",{"$f":"IFERROR(AVERAGEIFS(tblClassScores[الدرجات],tblClassScores[الفصل الدراسي],الحسابات!$C21,tblClassScores[النوع],الحسابات!AC$5)*إعدادات!E24,\"\")","v":""},{"$f":"IFERROR(AVERAGEIFS(tblClassScores[الدرجات],tblClassScores[الفصل الدراسي],الحسابات!$C21,tblClassScores[النوع],الحسابات!AD$5)*إعدادات!F24,\"\")","v":""},{"$f":"IFERROR(AVERAGEIFS(tblClassScores[الدرجات],tblClassScores[الفصل الدراسي],الحسابات!$C21,tblClassScores[النوع],الحسابات!AE$5)*إعدادات!G24,\"\")","v":""},{"$f":"IFERROR(AVERAGEIFS(tblClassScores[الدرجات],tblClassScores[الفصل الدراسي],الحسابات!$C21,tblClassScores[النوع],الحسابات!AF$5)*إعدادات!H24,\"\")","v":""},{"$f":"IFERROR(AVERAGEIFS(tblClassScores[الدرجات],tblClassScores[الفصل الدراسي],الحسابات!$C21,tblClassScores[النوع],الحسابات!AG$5)*إعدادات!I24,\"\")","v":""},{"$f":"IFERROR(AVERAGEIFS(tblClassScores[الدرجات],tblClassScores[الفصل الدراسي],الحسابات!$C21,tblClassScores[النوع],الحسابات!AH$5)*إعدادات!J24,\"\")","v":""},{"$f":"IFERROR(AVERAGEIFS(tblClassScores[الدرجات],tblClassScores[الفصل الدراسي],الحسابات!$C21,tblClassScores[النوع],الحسابات!AI$5)*إعدادات!K24,\"\")","v":""},0,{"$f":"SUMIFS(إعدادات!E24:K24,الحسابات!AC21:AI21,\">0\")","v":0},"","",""]
[null,null,{"$f":"IF(إعدادات!C25=\"\",\"\",إعدادات!C25)","v":""},"","","","","","","","","","","","","","","","","","","","","","","","","",{"$f":"IFERROR(AVERAGEIFS(tblClassScores[الدرجات],tblClassScores[الفصل الدراسي],الحسابات!$C22,tblClassScores[النوع],الحسابات!AC$5)*إعدادات!E25,\"\")","v":""},{"$f":"IFERROR(AVERAGEIFS(tblClassScores[الدرجات],tblClassScores[الفصل الدراسي],الحسابات!$C22,tblClassScores[النوع],الحسابات!AD$5)*إعدادات!F25,\"\")","v":""},{"$f":"IFERROR(AVERAGEIFS(tblClassScores[الدرجات],tblClassScores[الفصل الدراسي],الحسابات!$C22,tblClassScores[النوع],الحسابات!AE$5)*إعدادات!G25,\"\")","v":""},{"$f":"IFERROR(AVERAGEIFS(tblClassScores[الدرجات],tblClassScores[الفصل الدراسي],الحسابات!$C22,tblClassScores[النوع],الحسابات!AF$5)*إعدادات!H25,\"\")","v":""},{"$f":"IFERROR(AVERAGEIFS(tblClassScores[الدرجات],tblClassScores[الفصل الدراسي],الحسابات!$C22,tblClassScores[النوع],الحسابات!AG$5)*إعدادات!I25,\"\")","v":""},{"$f":"IFERROR(AVERAGEIFS(tblClassScores[الدرجات],tblClassScores[الفصل الدراسي],الحسابات!$C22,tblClassScores[النوع],الحسابات!AH$5)*إعدادات!J25,\"\")","v":""},{"$f":"IFERROR(AVERAGEIFS(tblClassScores[الدرجات],tblClassScores[الفصل الدراسي],الحسابات!$C22,tblClassScores[النوع],الحسابات!AI$5)*إعدادات!K25,\"\")","v":""},0,{"$f":"SUMIFS(إعدادات!E25:K25,الحسابات!AC22:AI22,\">0\")","v":0},"","",""]
[null,null,{"$f":"IF(إعدادات!C26=\"\",\"\",إعدادات!C26)","v":""},"","","","","","","","","","","","","","","","","","","","","","","","","",{"$f":"IFERROR(AVERAGEIFS(tblClassScores[الدرجات],tblClassScores[الفصل الدراسي],الحسابات!$C23,tblClassScores[النوع],الحسابات!AC$5)*إعدادات!E26,\"\")","v":""},{"$f":"IFERROR(AVERAGEIFS(tblClassScores[الدرجات],tblClassScores[الفصل الدراسي],الحسابات!$C23,tblClassScores[النوع],الحسابات!AD$5)*إعدادات!F26,\"\")","v":""},{"$f":"IFERROR(AVERAGEIFS(tblClassScores[الدرجات],tblClassScores[الفصل الدراسي],الحسابات!$C23,tblClassScores[النوع],الحسابات!AE$5)*إعدادات!G26,\"\")","v":""},{"$f":"IFERROR(AVERAGEIFS(tblClassScores[الدرجات],tblClassScores[الفصل الدراسي],الحسابات!$C23,tblClassScores[النوع],الحسابات!AF$5)*إعدادات!H26,\"\")","v":""},{"$f":"IFERROR(AVERAGEIFS(tblClassScores[الدرجات],tblClassScores[الفصل الدراسي],الحسابات!$C23,tblClassScores[النوع],الحسابات!AG$5)*إعدادات!I26,\"\")","v":""},{"$f":"IFERROR(AVERAGEIFS(tblClassScores[الدرجات],tblClassScores[الفصل الدراسي],الحسابات!$C23,tblClassScores[النوع],الحسابات!AH$5)*إعدادات!J26,\"\")","v":""},{"$f":"IFERROR(AVERAGEIFS(tblClassScores[الدرجات],tblClassScores[الفصل الدراسي],الحسابات!$C23,tblClassScores[النوع],الحسابات!AI$5)*إعدادات!K26,\"\")","v":""},0,{"$f":"SUMIFS(إعدادات!E26:K26,الحسابات!AC23:AI23,\">0\")","v":0},"","",""]
[null,null,{"$f":"IF(إعدادات!C27=\"\",\"\",إعدادات!C27)","v":""},"","","","","","","","","","","","","","","","","","","","","","","","","",{"$f":"IFERROR(AVERAGEIFS(tblClassScores[الدرجات],tblClassScores[الفصل الدراسي],الحسابات!$C24,tblClassScores[النوع],الحسابات!AC$5)*إعدادات!E27,\"\")","v":""},{"$f":"IFERROR(AVERAGEIFS(tblClassScores[الدرجات],tblClassScores[الفصل الدراسي],الحسابات!$C24,tblClassScores[النوع],الحسابات!AD$5)*إعدادات!F27,\"\")","v":""},{"$f":"IFERROR(AVERAGEIFS(tblClassScores[الدرجات],tblClassScores[الفصل الدراسي],الحسابات!$C24,tblClassScores[النوع],الحسابات!AE$5)*إعدادات!G27,\"\")","v":""},{"$f":"IFERROR(AVERAGEIFS(tblClassScores[الدرجات],tblClassScores[الفصل الدراسي],الحسابات!$C24,tblClassScores[النوع],الحسابات!AF$5)*إعدادات!H27,\"\")","v":""},{"$f":"IFERROR(AVERAGEIFS(tblClassScores[الدرجات],tblClassScores[الفصل الدراسي],الحسابات!$C24,tblClassScores[النوع],الحسابات!AG$5)*إعدادات!I27,\"\")","v":""},{"$f":"IFERROR(AVERAGEIFS(tblClassScores[الدرجات],tblClassScores[الفصل الدراسي],الحسابات!$C24,tblClassScores[النوع],الحسابات!AH$5)*إعدادات!J27,\"\")","v":""},{"$f":"IFERROR(AVERAGEIFS(tblClassScores[الدرجات],tblClassScores[الفصل الدراسي],الحسابات!$C24,tblClassScores[النوع],الحسابات!AI$5)*إعدادات!K27,\"\")","v":""},0,{"$f":"SUMIFS(إعدادات!E27:K27,الحسابات!AC24:AI24,\">0\")","v":0},"","",""]
[null,null,{"$f":"IF(إعدادات!C28=\"\",\"\",إعدادات!C28)","v":""},"","","","","","","","","","","","","","","","","","","","","","","","","",{"$f":"IFERROR(AVERAGEIFS(tblClassScores[الدرجات],tblClassScores[الفصل الدراسي],الحسابات!$C25,tblClassScores[النوع],الحسابات!AC$5)*إعدادات!E28,\"\")","v":""},{"$f":"IFERROR(AVERAGEIFS(tblClassScores[الدرجات],tblClassScores[الفصل الدراسي],الحسابات!$C25,tblClassScores[النوع],الحسابات!AD$5)*إعدادات!F28,\"\")","v":""},{"$f":"IFERROR(AVERAGEIFS(tblClassScores[الدرجات],tblClassScores[الفصل الدراسي],الحسابات!$C25,tblClassScores[النوع],الحسابات!AE$5)*إعدادات!G28,\"\")","v":""},{"$f":"IFERROR(AVERAGEIFS(tblClassScores[الدرجات],tblClassScores[الفصل الدراسي],الحسابات!$C25,tblClassScores[النوع],الحسابات!AF$5)*إعدادات!H28,\"\")","v":""},{"$f":"IFERROR(AVERAGEIFS(tblClassScores[الدرجات],tblClassScores[الفصل الدراسي],الحسابات!$C25,tblClassScores[النوع],الحسابات!AG$5)*إعدادات!I28,\"\")","v":""},{"$f":"IFERROR(AVERAGEIFS(tblClassScores[الدرجات],tblClassScores[الفصل الدراسي],الحسابات!$C25,tblClassScores[النوع],الحسابات!AH$5)*إعدادات!J28,\"\")","v":""},{"$f":"IFERROR(AVERAGEIFS(tblClassScores[الدرجات],tblClassScores[الفصل الدراسي],الحسابات!$C25,tblClassScores[النوع],الحسابات!AI$5)*إعدادات!K28,\"\")","v":""},0,{"$f":"SUMIFS(إعدادات!E28:K28,الحسابات!AC25:AI25,\">0\")","v":0},"","",""]
[null,null,{"$f":"IF(إعدادات!C29=\"\",\"\",إعدادات!C29)","v":""},"","","","","","","","","","","","","","","","","","","","","","","","","",{"$f":"IFERROR(AVERAGEIFS(tblClassScores[الدرجات],tblClassScores[الفصل الدراسي],الحسابات!$C26,tblClassScores[النوع],الحسابات!AC$5)*إعدادات!E29,\"\")","v":""},{"$f":"IFERROR(AVERAGEIFS(tblClassScores[الدرجات],tblClassScores[الفصل الدراسي],الحسابات!$C26,tblClassScores[النوع],الحسابات!AD$5)*إعدادات!F29,\"\")","v":""},{"$f":"IFERROR(AVERAGEIFS(tblClassScores[الدرجات],tblClassScores[الفصل الدراسي],الحسابات!$C26,tblClassScores[النوع],الحسابات!AE$5)*إعدادات!G29,\"\")","v":""},{"$f":"IFERROR(AVERAGEIFS(tblClassScores[الدرجات],tblClassScores[الفصل الدراسي],الحسابات!$C26,tblClassScores[النوع],الحسابات!AF$5)*إعدادات!H29,\"\")","v":""},{"$f":"IFERROR(AVERAGEIFS(tblClassScores[الدرجات],tblClassScores[الفصل الدراسي],الحسابات!$C26,tblClassScores[النوع],الحسابات!AG$5)*إعدادات!I29,\"\")","v":""},{"$f":"IFERROR(AVERAGEIFS(tblClassScores[الدرجات],tblClassScores[الفصل الدراسي],الحسابات!$C26,tblClassScores[النوع],الحسابات!AH$5)*إعدادات!J29,\"\")","v":""},{"$f":"IFERROR(AVERAGEIFS(tblClassScores[الدرجات],tblClassScores[الفصل الدراسي],الحسابات!$C26,tblClassScores[النوع],الحسابات!AI$5)*إعدادات!K29,\"\")","v":""},0,{"$f":"SUMIFS(إعدادات!E29:K29,الحسابات!AC26:AI26,\">0\")","v":0},"","",""]
[null,null,{"$f":"IF(إعدادات!C30=\"\",\"\",إعدادات!C30)","v":""},"","","","","","","","","","","","","","","","","","","","","","","","","",{"$f":"IFERROR(AVERAGEIFS(tblClassScores[الدرجات],tblClassScores[الفصل الدراسي],الحسابات!$C27,tblClassScores[النوع],الحسابات!AC$5)*إعدادات!E30,\"\")","v":""},{"$f":"IFERROR(AVERAGEIFS(tblClassScores[الدرجات],tblClassScores[الفصل الدراسي],الحسابات!$C27,tblClassScores[النوع],الحسابات!AD$5)*إعدادات!F30,\"\")","v":""},{"$f":"IFERROR(AVERAGEIFS(tblClassScores[الدرجات],tblClassScores[الفصل الدراسي],الحسابات!$C27,tblClassScores[النوع],الحسابات!AE$5)*إعدادات!G30,\"\")","v":""},{"$f":"IFERROR(AVERAGEIFS(tblClassScores[الدرجات],tblClassScores[الفصل الدراسي],الحسابات!$C27,tblClassScores[النوع],الحسابات!AF$5)*إعدادات!H30,\"\")","v":""},{"$f":"IFERROR(AVERAGEIFS(tblClassScores[الدرجات],tblClassScores[الفصل الدراسي],الحسابات!$C27,tblClassScores[النوع],الحسابات!AG$5)*إعدادات!I30,\"\")","v":""},{"$f":"IFERROR(AVERAGEIFS(tblClassScores[الدرجات],tblClassScores[الفصل الدراسي],الحسابات!$C27,tblClassScores[النوع],الحسابات!AH$5)*إعدادات!J30,\"\")","v":""},{"$f":"IFERROR(AVERAGEIFS(tblClassScores[الدرجات],tblClassScores[الفصل الدراسي],الحسابات!$C27,tblClassScores[النوع],الحسابات!AI$5)*إعدادات!K30,\"\")","v":""},0,{"$f":"SUMIFS(إعدادات!E30:K30,الحسابات!AC27:AI27,\">0\")","v":0},"","",""]
[null,null,{"$f":"IF(إعدادات!C31=\"\",\"\",إعدادات!C31)","v":""},"","","","","","","","","","","","","","","","","","","","","","","","","",{"$f":"IFERROR(AVERAGEIFS(tblClassScores[الدرجات],tblClassScores[الفصل الدراسي],الحسابات!$C28,tblClassScores[النوع],الحسابات!AC$5)*إعدادات!E31,\"\")","v":""},{"$f":"IFERROR(AVERAGEIFS(tblClassScores[الدرجات],tblClassScores[الفصل الدراسي],الحسابات!$C28,tblClassScores[النوع],الحسابات!AD$5)*إعدادات!F31,\"\")","v":""},{"$f":"IFERROR(AVERAGEIFS(tblClassScores[الدرجات],tblClassScores[الفصل الدراسي],الحسابات!$C28,tblClassScores[النوع],الحسابات!AE$5)*إعدادات!G31,\"\")","v":""},{"$f":"IFERROR(AVERAGEIFS(tblClassScores[الدرجات],tblClassScores[الفصل الدراسي],الحسابات!$C28,tblClassScores[النوع],الحسابات!AF$5)*إعدادات!H31,\"\")","v":""},{"$f":"IFERROR(AVERAGEIFS(tblClassScores[الدرجات],tblClassScores[الفصل الدراسي],الحسابات!$C28,tblClassScores[النوع],الحسابات!AG$5)*إعدادات!I31,\"\")","v":""},{"$f":"IFERROR(AVERAGEIFS(tblClassScores[الدرجات],tblClassScores[الفصل الدراسي],الحسابات!$C28,tblClassScores[النوع],الحسابات!AH$5)*إعدادات!J31,\"\")","v":""},{"$f":"IFERROR(AVERAGEIFS(tblClassScores[الدرجات],tblClassScores[الفصل الدراسي],الحسابات!$C28,tblClassScores[النوع],الحسابات!AI$5)*إعدادات!K31,\"\")","v":""},0,{"$f":"SUMIFS(إعدادات!E31:K31,الحسابات!AC28:AI28,\">0\")","v":0},"","",""]
[null,null,{"$f":"IF(إعدادات!C32=\"\",\"\",إعدادات!C32)","v":""},"","","","","","","","","","","","","","","","","","","","","","","","","",{"$f":"IFERROR(AVERAGEIFS(tblClassScores[الدرجات],tblClassScores[الفصل الدراسي],الحسابات!$C29,tblClassScores[النوع],الحسابات!AC$5)*إعدادات!E32,\"\")","v":""},{"$f":"IFERROR(AVERAGEIFS(tblClassScores[الدرجات],tblClassScores[الفصل الدراسي],الحسابات!$C29,tblClassScores[النوع],الحسابات!AD$5)*إعدادات!F32,\"\")","v":""},{"$f":"IFERROR(AVERAGEIFS(tblClassScores[الدرجات],tblClassScores[الفصل الدراسي],الحسابات!$C29,tblClassScores[النوع],الحسابات!AE$5)*إعدادات!G32,\"\")","v":""},{"$f":"IFERROR(AVERAGEIFS(tblClassScores[الدرجات],tblClassScores[الفصل الدراسي],الحسابات!$C29,tblClassScores[النوع],الحسابات!AF$5)*إعدادات!H32,\"\")","v":""},{"$f":"IFERROR(AVERAGEIFS(tblClassScores[الدرجات],tblClassScores[الفصل الدراسي],الحسابات!$C29,tblClassScores[النوع],الحسابات!AG$5)*إعدادات!I32,\"\")","v":""},{"$f":"IFERROR(AVERAGEIFS(tblClassScores[الدرجات],tblClassScores[الفصل الدراسي],الحسابات!$C29,tblClassScores[النوع],الحسابات!AH$5)*إعدادات!J32,\"\")","v":""},{"$f":"IFERROR(AVERAGEIFS(tblClassScores[الدرجات],tblClassScores[الفصل الدراسي],الحسابات!$C29,tblClassScores[النوع],الحسابات!AI$5)*إعدادات!K32,\"\")","v":""},0,{"$f":"SUMIFS(إعدادات!E32:K32,الحسابات!AC29:AI29,\">0\")","v":0},"","",""]
[null,null,{"$f":"IF(إعدادات!C33=\"\",\"\",إعدادات!C33)","v":""},"","","","","","","","","","","","","","","","","","","","","","","","","",{"$f":"IFERROR(AVERAGEIFS(tblClassScores[الدرجات],tblClassScores[الفصل الدراسي],الحسابات!$C30,tblClassScores[النوع],الحسابات!AC$5)*إعدادات!E33,\"\")","v":""},{"$f":"IFERROR(AVERAGEIFS(tblClassScores[الدرجات],tblClassScores[الفصل الدراسي],الحسابات!$C30,tblClassScores[النوع],الحسابات!AD$5)*إعدادات!F33,\"\")","v":""},{"$f":"IFERROR(AVERAGEIFS(tblClassScores[الدرجات],tblClassScores[الفصل الدراسي],الحسابات!$C30,tblClassScores[النوع],الحسابات!AE$5)*إعدادات!G33,\"\")","v":""},{"$f":"IFERROR(AVERAGEIFS(tblClassScores[الدرجات],tblClassScores[الفصل الدراسي],الحسابات!$C30,tblClassScores[النوع],الحسابات!AF$5)*إعدادات!H33,\"\")","v":""},{"$f":"IFERROR(AVERAGEIFS(tblClassScores[الدرجات],tblClassScores[الفصل الدراسي],الحسابات!$C30,tblClassScores[النوع],الحسابات!AG$5)*إعدادات!I33,\"\")","v":""},{"$f":"IFERROR(AVERAGEIFS(tblClassScores[الدرجات],tblClassScores[الفصل الدراسي],الحسابات!$C30,tblClassScores[النوع],الحسابات!AH$5)*إعدادات!J33,\"\")","v":""},{"$f":"IFERROR(AVERAGEIFS(tblClassScores[الدرجات],tblClassScores[الفصل الدراسي],الحسابات!$C30,tblClassScores[النوع],الحسابات!AI$5)*إعدادات!K33,\"\")","v":""},0,{"$f":"SUMIFS(إعدادات!E33:K33,الحسابات!AC30:AI30,\">0\")","v":0},"","",""]
[]
[]
[null,1,{"$f":"'متعقب الدرجات'!C4&COUNTIF('متعقب الدرجات'!$C$4:C4,'متعقب الدرجات'!C4)","v":"الفرنسية الحديثة1"}]
[null,2,{"$f":"'متعقب الدرجات'!C5&COUNTIF('متعقب الدرجات'!$C$4:C5,'متعقب الدرجات'!C5)","v":"البرمجة المتقدمة بلغة Java1"}]
[null,3,{"$f":"'متعقب الدرجات'!C6&COUNTIF('متعقب الدرجات'!$C$4:C6,'متعقب الدرجات'!C6)","v":"الأسبانية1"}]
[null,4,{"$f":"'متعقب الدرجات'!C7&COUNTIF('متعقب الدرجات'!$C$4:C7,'متعقب الدرجات'!C7)","v":"الفيزياء النظرية1"}]
[null,5,{"$f":"'متعقب الدرجات'!C8&COUNTIF('متعقب الدرجات'!$C$4:C8,'متعقب الدرجات'!C8)","v":"الفرنسية الحديثة2"}]
[null,6,{"$f":"'متعقب الدرجات'!C9&COUNTIF('متعقب الدرجات'!$C$4:C9,'متعقب الدرجات'!C9)","v":"الفرنسية الحديثة3"}]
[null,7,{"$f":"'متعقب الدرجات'!C10&COUNTIF('متعقب الدرجات'!$C$4:C10,'متعقب الدرجات'!C10)","v":"الإنشاء1"}]
[null,8,{"$f":"'متعقب الدرجات'!C11&COUNTIF('متعقب الدرجات'!$C$4:C11,'متعقب الدرجات'!C11)","v":"الرياضيات 11"}]
[null,9,{"$f":"'متعقب الدرجات'!C12&COUNTIF('متعقب الدرجات'!$C$4:C12,'متعقب الدرجات'!C12)","v":"الرياضيات 21"}]
[null,10,{"$f":"'متعقب الدرجات'!C13&COUNTIF('متعقب الدرجات'!$C$4:C13,'متعقب الدرجات'!C13)","v":"الرياضيات 12"}]
[null,11,{"$f":"'متعقب الدرجات'!C14&COUNTIF('متعقب الدرجات'!$C$4:C14,'متعقب الدرجات'!C14)","v":"الرياضيات 22"}]
[null,12,{"$f":"'متعقب الدرجات'!C15&COUNTIF('متعقب الدرجات'!$C$4:C15,'متعقب الدرجات'!C15)","v":"0"}]
[null,13,{"$f":"'متعقب الدرجات'!C16&COUNTIF('متعقب الدرجات'!$C$4:C16,'متعقب الدرجات'!C16)","v":"0"}]
[null,14,{"$f":"'متعقب الدرجات'!C17&COUNTIF('متعقب الدرجات'!$C$4:C17,'متعقب الدرجات'!C17)","v":"0"}]
[null,15,{"$f":"'متعقب الدرجات'!C18&COUNTIF('متعقب الدرجات'!$C$4:C18,'متعقب الدرجات'!C18)","v":"0"}]
[null,16,{"$f":"'متعقب الدرجات'!C19&COUNTIF('متعقب الدرجات'!$C$4:C19,'متعقب الدرجات'!C19)","v":"0"}]
[null,17,{"$f":"'متعقب الدرجات'!C20&COUNTIF('متعقب الدرجات'!$C$4:C20,'متعقب الدرجات'!C20)","v":"0"}]
[null,18,{"$f":"'متعقب الدرجات'!C21&COUNTIF('متعقب الدرجات'!$C$4:C21,'متعقب الدرجات'!C21)","v":"0"}]
[null,19,{"$f":"'متعقب الدرجات'!C22&COUNTIF('متعقب الدرجات'!$C$4:C22,'متعقب الدرجات'!C22)","v":"0"}]
[null,20,{"$f":"'متعقب الدرجات'!C23&COUNTIF('متعقب الدرجات'!$C$4:C23,'متعقب الدرجات'!C23)","v":"0"}]
[null,21,{"$f":"'متعقب الدرجات'!C24&COUNTIF('متعقب الدرجات'!$C$4:C24,'متعقب الدرجات'!C24)","v":"0"}]
[null,22,{"$f":"'متعقب الدرجات'!C25&COUNTIF('متعقب الدرجات'!$C$4:C25,'متعقب الدرجات'!C25)","v":"0"}]
[null,23,{"$f":"'متعقب الدرجات'!C26&COUNTIF('متعقب الدرجات'!$C$4:C26,'متعقب الدرجات'!C26)","v":"0"}]
[null,24,{"$f":"'متعقب الدرجات'!C27&COUNTIF('متعقب الدرجات'!$C$4:C27,'متعقب الدرجات'!C27)","v":"0"}]
[null,25,{"$f":"'متعقب الدرجات'!C28&COUNTIF('متعقب الدرجات'!$C$4:C28,'متعقب الدرجات'!C28)","v":"0"}]
[null,26,{"$f":"'متعقب الدرجات'!C29&COUNTIF('متعقب الدرجات'!$C$4:C29,'متعقب الدرجات'!C29)","v":"0"}]
[null,27,{"$f":"'متعقب الدرجات'!C30&COUNTIF('متعقب الدرجات'!$C$4:C30,'متعقب الدرجات'!C30)","v":"0"}]
[null,28,{"$f":"'متعقب الدرجات'!C31&COUNTIF('متعقب الدرجات'!$C$4:C31,'متعقب الدرجات'!C31)","v":"0"}]
[null,29,{"$f":"'متعقب الدرجات'!C32&COUNTIF('متعقب الدرجات'!$C$4:C32,'متعقب الدرجات'!C32)","v":"0"}]
[null,30,{"$f":"'متعقب الدرجات'!C33&COUNTIF('متعقب الدرجات'!$C$4:C33,'متعقب الدرجات'!C33)","v":"0"}]
[null,31,{"$f":"'متعقب الدرجات'!C34&COUNTIF('متعقب الدرجات'!$C$4:C34,'متعقب الدرجات'!C34)","v":"0"}]
[null,32,{"$f":"'متعقب الدرجات'!C35&COUNTIF('متعقب الدرجات'!$C$4:C35,'متعقب الدرجات'!C35)","v":"0"}]
[null,33,{"$f":"'متعقب الدرجات'!C36&COUNTIF('متعقب الدرجات'!$C$4:C36,'متعقب الدرجات'!C36)","v":"0"}]
[null,34,{"$f":"'متعقب الدرجات'!C37&COUNTIF('متعقب الدرجات'!$C$4:C37,'متعقب الدرجات'!C37)","v":"0"}]
[null,35,{"$f":"'متعقب الدرجات'!C38&COUNTIF('متعقب الدرجات'!$C$4:C38,'متعقب الدرجات'!C38)","v":"0"}]
[null,36,{"$f":"'متعقب الدرجات'!C39&COUNTIF('متعقب الدرجات'!$C$4:C39,'متعقب الدرجات'!C39)","v":"0"}]
[null,37,{"$f":"'متعقب الدرجات'!C40&COUNTIF('متعقب الدرجات'!$C$4:C40,'متعقب الدرجات'!C40)","v":"0"}]
[null,38,{"$f":"'متعقب الدرجات'!C41&COUNTIF('متعقب الدرجات'!$C$4:C41,'متعقب الدرجات'!C41)","v":"0"}]
[null,39,{"$f":"'متعقب الدرجات'!C42&COUNTIF('متعقب الدرجات'!$C$4:C42,'متعقب الدرجات'!C42)","v":"0"}]
[null,40,{"$f":"'متعقب الدرجات'!C43&COUNTIF('متعقب الدرجات'!$C$4:C43,'متعقب الدرجات'!C43)","v":"0"}]
[null,41,{"$f":"'متعقب الدرجات'!C44&COUNTIF('متعقب الدرجات'!$C$4:C44,'متعقب الدرجات'!C44)","v":"0"}]
[null,42,{"$f":"'متعقب الدرجات'!C45&COUNTIF('متعقب الدرجات'!$C$4:C45,'متعقب الدرجات'!C45)","v":"0"}]
[null,43,{"$f":"'متعقب الدرجات'!C46&COUNTIF('متعقب الدرجات'!$C$4:C46,'متعقب الدرجات'!C46)","v":"0"}]
[null,44,{"$f":"'متعقب الدرجات'!C47&COUNTIF('متعقب الدرجات'!$C$4:C47,'متعقب الدرجات'!C47)","v":"0"}]
[null,45,{"$f":"'متعقب الدرجات'!C48&COUNTIF('متعقب الدرجات'!$C$4:C48,'متعقب الدرجات'!C48)","v":"0"}]
[null,46,{"$f":"'متعقب الدرجات'!C49&COUNTIF('متعقب الدرجات'!$C$4:C49,'متعقب الدرجات'!C49)","v":"0"}]
[null,47,{"$f":"'متعقب الدرجات'!C50&COUNTIF('متعقب الدرجات'!$C$4:C50,'متعقب الدرجات'!C50)","v":"0"}]
[null,48,{"$f":"'متعقب الدرجات'!C51&COUNTIF('متعقب الدرجات'!$C$4:C51,'متعقب الدرجات'!C51)","v":"0"}]
[null,49,{"$f":"'متعقب الدرجات'!C52&COUNTIF('متعقب الدرجات'!$C$4:C52,'متعقب الدرجات'!C52)","v":"0"}]
[null,50,{"$f":"'متعقب الدرجات'!C53&COUNTIF('متعقب الدرجات'!$C$4:C53,'متعقب الدرجات'!C53)","v":"0"}]
[null,51,{"$f":"'متعقب الدرجات'!C54&COUNTIF('متعقب الدرجات'!$C$4:C54,'متعقب الدرجات'!C54)","v":"0"}]
[null,52,{"$f":"'متعقب الدرجات'!C55&COUNTIF('متعقب الدرجات'!$C$4:C55,'متعقب الدرجات'!C55)","v":"0"}]
[null,53,{"$f":"'متعقب الدرجات'!C56&COUNTIF('متعقب الدرجات'!$C$4:C56,'متعقب الدرجات'!C56)","v":"0"}]
[null,54,{"$f":"'متعقب الدرجات'!C57&COUNTIF('متعقب الدرجات'!$C$4:C57,'متعقب الدرجات'!C57)","v":"0"}]
[null,55,{"$f":"'متعقب الدرجات'!C58&COUNTIF('متعقب الدرجات'!$C$4:C58,'متعقب الدرجات'!C58)","v":"0"}]
[null,56,{"$f":"'متعقب الدرجات'!C59&COUNTIF('متعقب الدرجات'!$C$4:C59,'متعقب الدرجات'!C59)","v":"0"}]
[null,57,{"$f":"'متعقب الدرجات'!C60&COUNTIF('متعقب الدرجات'!$C$4:C60,'متعقب الدرجات'!C60)","v":"0"}]
[null,58,{"$f":"'متعقب الدرجات'!C61&COUNTIF('متعقب الدرجات'!$C$4:C61,'متعقب الدرجات'!C61)","v":"0"}]
[null,59,{"$f":"'متعقب الدرجات'!C62&COUNTIF('متعقب الدرجات'!$C$4:C62,'متعقب الدرجات'!C62)","v":"0"}]
[null,60,{"$f":"'متعقب الدرجات'!C63&COUNTIF('متعقب الدرجات'!$C$4:C63,'متعقب الدرجات'!C63)","v":"0"}]
[null,61,{"$f":"'متعقب الدرجات'!C64&COUNTIF('متعقب الدرجات'!$C$4:C64,'متعقب الدرجات'!C64)","v":"0"}]
[null,62,{"$f":"'متعقب الدرجات'!C65&COUNTIF('متعقب الدرجات'!$C$4:C65,'متعقب الدرجات'!C65)","v":"0"}]
[null,63,{"$f":"'متعقب الدرجات'!C66&COUNTIF('متعقب الدرجات'!$C$4:C66,'متعقب الدرجات'!C66)","v":"0"}]
[null,64,{"$f":"'متعقب الدرجات'!C67&COUNTIF('متعقب الدرجات'!$C$4:C67,'متعقب الدرجات'!C67)","v":"0"}]
[null,65,{"$f":"'متعقب الدرجات'!C68&COUNTIF('متعقب الدرجات'!$C$4:C68,'متعقب الدرجات'!C68)","v":"0"}]
[null,66,{"$f":"'متعقب الدرجات'!C69&COUNTIF('متعقب الدرجات'!$C$4:C69,'متعقب الدرجات'!C69)","v":"0"}]
[null,67,{"$f":"'متعقب الدرجات'!C70&COUNTIF('متعقب الدرجات'!$C$4:C70,'متعقب الدرجات'!C70)","v":"0"}]
[null,68,{"$f":"'متعقب الدرجات'!C71&COUNTIF('متعقب الدرجات'!$C$4:C71,'متعقب الدرجات'!C71)","v":"0"}]
[null,69,{"$f":"'متعقب الدرجات'!C72&COUNTIF('متعقب الدرجات'!$C$4:C72,'متعقب الدرجات'!C72)","v":"0"}]
[null,70,{"$f":"'متعقب الدرجات'!C73&COUNTIF('متعقب الدرجات'!$C$4:C73,'متعقب الدرجات'!C73)","v":"0"}]
[null,71,{"$f":"'متعقب الدرجات'!C74&COUNTIF('متعقب الدرجات'!$C$4:C74,'متعقب الدرجات'!C74)","v":"0"}]
[null,72,{"$f":"'متعقب الدرجات'!C75&COUNTIF('متعقب الدرجات'!$C$4:C75,'متعقب الدرجات'!C75)","v":"0"}]
[null,73,{"$f":"'متعقب الدرجات'!C76&COUNTIF('متعقب الدرجات'!$C$4:C76,'متعقب الدرجات'!C76)","v":"0"}]
[null,74,{"$f":"'متعقب الدرجات'!C77&COUNTIF('متعقب الدرجات'!$C$4:C77,'متعقب الدرجات'!C77)","v":"0"}]
[null,75,{"$f":"'متعقب الدرجات'!C78&COUNTIF('متعقب الدرجات'!$C$4:C78,'متعقب الدرجات'!C78)","v":"0"}]
[null,76,{"$f":"'متعقب الدرجات'!C79&COUNTIF('متعقب الدرجات'!$C$4:C79,'متعقب الدرجات'!C79)","v":"0"}]
[null,77,{"$f":"'متعقب الدرجات'!C80&COUNTIF('متعقب الدرجات'!$C$4:C80,'متعقب الدرجات'!C80)","v":"0"}]
[null,78,{"$f":"'متعقب الدرجات'!C81&COUNTIF('متعقب الدرجات'!$C$4:C81,'متعقب الدرجات'!C81)","v":"0"}]
[null,79,{"$f":"'متعقب الدرجات'!C82&COUNTIF('متعقب الدرجات'!$C$4:C82,'متعقب الدرجات'!C82)","v":"0"}]
[null,80,{"$f":"'متعقب الدرجات'!C83&COUNTIF('متعقب الدرجات'!$C$4:C83,'متعقب الدرجات'!C83)","v":"0"}]
[null,81,{"$f":"'متعقب الدرجات'!C84&COUNTIF('متعقب الدرجات'!$C$4:C84,'متعقب الدرجات'!C84)","v":"0"}]
[null,82,{"$f":"'متعقب الدرجات'!C85&COUNTIF('متعقب الدرجات'!$C$4:C85,'متعقب الدرجات'!C85)","v":"0"}]
[null,83,{"$f":"'متعقب الدرجات'!C86&COUNTIF('متعقب الدرجات'!$C$4:C86,'متعقب الدرجات'!C86)","v":"0"}]
[null,84,{"$f":"'متعقب الدرجات'!C87&COUNTIF('متعقب الدرجات'!$C$4:C87,'متعقب الدرجات'!C87)","v":"0"}]
[null,85,{"$f":"'متعقب الدرجات'!C88&COUNTIF('متعقب الدرجات'!$C$4:C88,'متعقب الدرجات'!C88)","v":"0"}]
[null,86,{"$f":"'متعقب الدرجات'!C89&COUNTIF('متعقب الدرجات'!$C$4:C89,'متعقب الدرجات'!C89)","v":"0"}]
[null,87,{"$f":"'متعقب الدرجات'!C90&COUNTIF('متعقب الدرجات'!$C$4:C90,'متعقب الدرجات'!C90)","v":"0"}]
[null,88,{"$f":"'متعقب الدرجات'!C91&COUNTIF('متعقب الدرجات'!$C$4:C91,'متعقب الدرجات'!C91)","v":"0"}]
[null,89,{"$f":"'متعقب الدرجات'!C92&COUNTIF('متعقب الدرجات'!$C$4:C92,'متعقب الدرجات'!C92)","v":"0"}]
[null,90,{"$f":"'متعقب الدرجات'!C93&COUNTIF('متعقب الدرجات'!$C$4:C93,'متعقب الدرجات'!C93)","v":"0"}]
[null,91,{"$f":"'متعقب الدرجات'!C94&COUNTIF('متعقب الدرجات'!$C$4:C94,'متعقب الدرجات'!C94)","v":"0"}]
[null,92,{"$f":"'متعقب الدرجات'!C95&COUNTIF('متعقب الدرجات'!$C$4:C95,'متعقب الدرجات'!C95)","v":"0"}]
[null,93,{"$f":"'متعقب الدرجات'!C96&COUNTIF('متعقب الدرجات'!$C$4:C96,'متعقب الدرجات'!C96)","v":"0"}]
[null,94,{"$f":"'متعقب الدرجات'!C97&COUNTIF('متعقب الدرجات'!$C$4:C97,'متعقب الدرجات'!C97)","v":"0"}]
[null,95,{"$f":"'متعقب الدرجات'!C98&COUNTIF('متعقب الدرجات'!$C$4:C98,'متعقب الدرجات'!C98)","v":"0"}]
[null,96,{"$f":"'متعقب الدرجات'!C99&COUNTIF('متعقب الدرجات'!$C$4:C99,'متعقب الدرجات'!C99)","v":"0"}]
[null,97,{"$f":"'متعقب الدرجات'!C100&COUNTIF('متعقب الدرجات'!$C$4:C100,'متعقب الدرجات'!C100)","v":"0"}]
[null,98,{"$f":"'متعقب الدرجات'!C101&COUNTIF('متعقب الدرجات'!$C$4:C101,'متعقب الدرجات'!C101)","v":"0"}]
[null,99,{"$f":"'متعقب الدرجات'!C102&COUNTIF('متعقب الدرجات'!$C$4:C102,'متعقب الدرجات'!C102)","v":"0"}]
[null,100,{"$f":"'متعقب الدرجات'!C103&COUNTIF('متعقب الدرجات'!$C$4:C103,'متعقب الدرجات'!C103)","v":"0"}]
[null,101,{"$f":"'متعقب الدرجات'!C104&COUNTIF('متعقب الدرجات'!$C$4:C104,'متعقب الدرجات'!C104)","v":"0"}]
[null,102,{"$f":"'متعقب الدرجات'!C105&COUNTIF('متعقب الدرجات'!$C$4:C105,'متعقب الدرجات'!C105)","v":"0"}]
[null,103,{"$f":"'متعقب الدرجات'!C106&COUNTIF('متعقب الدرجات'!$C$4:C106,'متعقب الدرجات'!C106)","v":"0"}]
[null,104,{"$f":"'متعقب الدرجات'!C107&COUNTIF('متعقب الدرجات'!$C$4:C107,'متعقب الدرجات'!C107)","v":"0"}]
[null,105,{"$f":"'متعقب الدرجات'!C108&COUNTIF('متعقب الدرجات'!$C$4:C108,'متعقب الدرجات'!C108)","v":"0"}]
[null,106,{"$f":"'متعقب الدرجات'!C109&COUNTIF('متعقب الدرجات'!$C$4:C109,'متعقب الدرجات'!C109)","v":"0"}]
[null,107,{"$f":"'متعقب الدرجات'!C110&COUNTIF('متعقب الدرجات'!$C$4:C110,'متعقب الدرجات'!C110)","v":"0"}]
[null,108,{"$f":"'متعقب الدرجات'!C111&COUNTIF('متعقب الدرجات'!$C$4:C111,'متعقب الدرجات'!C111)","v":"0"}]
[null,109,{"$f":"'متعقب الدرجات'!C112&COUNTIF('متعقب الدرجات'!$C$4:C112,'متعقب الدرجات'!C112)","v":"0"}]
[null,110,{"$f":"'متعقب الدرجات'!C113&COUNTIF('متعقب الدرجات'!$C$4:C113,'متعقب الدرجات'!C113)","v":"0"}]
[null,111,{"$f":"'متعقب الدرجات'!C114&COUNTIF('متعقب الدرجات'!$C$4:C114,'متعقب الدرجات'!C114)","v":"0"}]
[null,112,{"$f":"'متعقب الدرجات'!C115&COUNTIF('متعقب الدرجات'!$C$4:C115,'متعقب الدرجات'!C115)","v":"0"}]
[null,113,{"$f":"'متعقب الدرجات'!C116&COUNTIF('متعقب الدرجات'!$C$4:C116,'متعقب الدرجات'!C116)","v":"0"}]
[null,114,{"$f":"'متعقب الدرجات'!C117&COUNTIF('متعقب الدرجات'!$C$4:C117,'متعقب الدرجات'!C117)","v":"0"}]
[null,115,{"$f":"'متعقب الدرجات'!C118&COUNTIF('متعقب الدرجات'!$C$4:C118,'متعقب الدرجات'!C118)","v":"0"}]
[null,116,{"$f":"'متعقب الدرجات'!C119&COUNTIF('متعقب الدرجات'!$C$4:C119,'متعقب الدرجات'!C119)","v":"0"}]
[null,117,{"$f":"'متعقب الدرجات'!C120&COUNTIF('متعقب الدرجات'!$C$4:C120,'متعقب الدرجات'!C120)","v":"0"}]
[null,118,{"$f":"'متعقب الدرجات'!C121&COUNTIF('متعقب الدرجات'!$C$4:C121,'متعقب الدرجات'!C121)","v":"0"}]
[null,119,{"$f":"'متعقب الدرجات'!C122&COUNTIF('متعقب الدرجات'!$C$4:C122,'متعقب الدرجات'!C122)","v":"0"}]
[null,120,{"$f":"'متعقب الدرجات'!C123&COUNTIF('متعقب الدرجات'!$C$4:C123,'متعقب الدرجات'!C123)","v":"0"}]
[null,121,{"$f":"'متعقب الدرجات'!C124&COUNTIF('متعقب الدرجات'!$C$4:C124,'متعقب الدرجات'!C124)","v":"0"}]
[null,122,{"$f":"'متعقب الدرجات'!C125&COUNTIF('متعقب الدرجات'!$C$4:C125,'متعقب الدرجات'!C125)","v":"0"}]
[null,123,{"$f":"'متعقب الدرجات'!C126&COUNTIF('متعقب الدرجات'!$C$4:C126,'متعقب الدرجات'!C126)","v":"0"}]
[null,124,{"$f":"'متعقب الدرجات'!C127&COUNTIF('متعقب الدرجات'!$C$4:C127,'متعقب الدرجات'!C127)","v":"0"}]
[null,125,{"$f":"'متعقب الدرجات'!C128&COUNTIF('متعقب الدرجات'!$C$4:C128,'متعقب الدرجات'!C128)","v":"0"}]
[null,126,{"$f":"'متعقب الدرجات'!C129&COUNTIF('متعقب الدرجات'!$C$4:C129,'متعقب الدرجات'!C129)","v":"0"}]
[null,127,{"$f":"'متعقب الدرجات'!C130&COUNTIF('متعقب الدرجات'!$C$4:C130,'متعقب الدرجات'!C130)","v":"0"}]
[null,128,{"$f":"'متعقب الدرجات'!C131&COUNTIF('متعقب الدرجات'!$C$4:C131,'متعقب الدرجات'!C131)","v":"0"}]
[null,129,{"$f":"'متعقب الدرجات'!C132&COUNTIF('متعقب الدرجات'!$C$4:C132,'متعقب الدرجات'!C132)","v":"0"}]
[null,130,{"$f":"'متعقب الدرجات'!C133&COUNTIF('متعقب الدرجات'!$C$4:C133,'متعقب الدرجات'!C133)","v":"0"}]
[null,131,{"$f":"'متعقب الدرجات'!C134&COUNTIF('متعقب الدرجات'!$C$4:C134,'متعقب الدرجات'!C134)","v":"0"}]
[null,132,{"$f":"'متعقب الدرجات'!C135&COUNTIF('متعقب الدرجات'!$C$4:C135,'متعقب الدرجات'!C135)","v":"0"}]
[null,133,{"$f":"'متعقب الدرجات'!C136&COUNTIF('متعقب الدرجات'!$C$4:C136,'متعقب الدرجات'!C136)","v":"0"}]
[null,134,{"$f":"'متعقب الدرجات'!C137&COUNTIF('متعقب الدرجات'!$C$4:C137,'متعقب الدرجات'!C137)","v":"0"}]
[null,135,{"$f":"'متعقب الدرجات'!C138&COUNTIF('متعقب الدرجات'!$C$4:C138,'متعقب الدرجات'!C138)","v":"0"}]
[null,136,{"$f":"'متعقب الدرجات'!C139&COUNTIF('متعقب الدرجات'!$C$4:C139,'متعقب الدرجات'!C139)","v":"0"}]
[null,137,{"$f":"'متعقب الدرجات'!C140&COUNTIF('متعقب الدرجات'!$C$4:C140,'متعقب الدرجات'!C140)","v":"0"}]
[null,138,{"$f":"'متعقب الدرجات'!C141&COUNTIF('متعقب الدرجات'!$C$4:C141,'متعقب الدرجات'!C141)","v":"0"}]
[null,139,{"$f":"'متعقب الدرجات'!C142&COUNTIF('متعقب الدرجات'!$C$4:C142,'متعقب الدرجات'!C142)","v":"0"}]
[null,140,{"$f":"'متعقب الدرجات'!C143&COUNTIF('متعقب الدرجات'!$C$4:C143,'متعقب الدرجات'!C143)","v":"0"}]
[null,141,{"$f":"'متعقب الدرجات'!C144&COUNTIF('متعقب الدرجات'!$C$4:C144,'متعقب الدرجات'!C144)","v":"0"}]
[null,142,{"$f":"'متعقب الدرجات'!C145&COUNTIF('متعقب الدرجات'!$C$4:C145,'متعقب الدرجات'!C145)","v":"0"}]
[null,143,{"$f":"'متعقب الدرجات'!C146&COUNTIF('متعقب الدرجات'!$C$4:C146,'متعقب الدرجات'!C146)","v":"0"}]
[null,144,{"$f":"'متعقب الدرجات'!C147&COUNTIF('متعقب الدرجات'!$C$4:C147,'متعقب الدرجات'!C147)","v":"0"}]
[null,145,{"$f":"'متعقب الدرجات'!C148&COUNTIF('متعقب الدرجات'!$C$4:C148,'متعقب الدرجات'!C148)","v":"0"}]
[null,146,{"$f":"'متعقب الدرجات'!C149&COUNTIF('متعقب الدرجات'!$C$4:C149,'متعقب الدرجات'!C149)","v":"0"}]
[null,147,{"$f":"'متعقب الدرجات'!C150&COUNTIF('متعقب الدرجات'!$C$4:C150,'متعقب الدرجات'!C150)","v":"0"}]
[null,148,{"$f":"'متعقب الدرجات'!C151&COUNTIF('متعقب الدرجات'!$C$4:C151,'متعقب الدرجات'!C151)","v":"0"}]
[null,149,{"$f":"'متعقب الدرجات'!C152&COUNTIF('متعقب الدرجات'!$C$4:C152,'متعقب الدرجات'!C152)","v":"0"}]
[null,150,{"$f":"'متعقب الدرجات'!C153&COUNTIF('متعقب الدرجات'!$C$4:C153,'متعقب الدرجات'!C153)","v":"0"}]
[null,151,{"$f":"'متعقب الدرجات'!C154&COUNTIF('متعقب الدرجات'!$C$4:C154,'متعقب الدرجات'!C154)","v":"0"}]
[null,152,{"$f":"'متعقب الدرجات'!C155&COUNTIF('متعقب الدرجات'!$C$4:C155,'متعقب الدرجات'!C155)","v":"0"}]
[null,153,{"$f":"'متعقب الدرجات'!C156&COUNTIF('متعقب الدرجات'!$C$4:C156,'متعقب الدرجات'!C156)","v":"0"}]
[null,154,{"$f":"'متعقب الدرجات'!C157&COUNTIF('متعقب الدرجات'!$C$4:C157,'متعقب الدرجات'!C157)","v":"0"}]
[null,155,{"$f":"'متعقب الدرجات'!C158&COUNTIF('متعقب الدرجات'!$C$4:C158,'متعقب الدرجات'!C158)","v":"0"}]
[null,156,{"$f":"'متعقب الدرجات'!C159&COUNTIF('متعقب الدرجات'!$C$4:C159,'متعقب الدرجات'!C159)","v":"0"}]
[null,157,{"$f":"'متعقب الدرجات'!C160&COUNTIF('متعقب الدرجات'!$C$4:C160,'متعقب الدرجات'!C160)","v":"0"}]
[null,158,{"$f":"'متعقب الدرجات'!C161&COUNTIF('متعقب الدرجات'!$C$4:C161,'متعقب الدرجات'!C161)","v":"0"}]
[null,159,{"$f":"'متعقب الدرجات'!C162&COUNTIF('متعقب الدرجات'!$C$4:C162,'متعقب الدرجات'!C162)","v":"0"}]
[null,160,{"$f":"'متعقب الدرجات'!C163&COUNTIF('متعقب الدرجات'!$C$4:C163,'متعقب الدرجات'!C163)","v":"0"}]
[null,161,{"$f":"'متعقب الدرجات'!C164&COUNTIF('متعقب الدرجات'!$C$4:C164,'متعقب الدرجات'!C164)","v":"0"}]
[null,162,{"$f":"'متعقب الدرجات'!C165&COUNTIF('متعقب الدرجات'!$C$4:C165,'متعقب الدرجات'!C165)","v":"0"}]
[null,163,{"$f":"'متعقب الدرجات'!C166&COUNTIF('متعقب الدرجات'!$C$4:C166,'متعقب الدرجات'!C166)","v":"0"}]
[null,164,{"$f":"'متعقب الدرجات'!C167&COUNTIF('متعقب الدرجات'!$C$4:C167,'متعقب الدرجات'!C167)","v":"0"}]
[null,165,{"$f":"'متعقب الدرجات'!C168&COUNTIF('متعقب الدرجات'!$C$4:C168,'متعقب الدرجات'!C168)","v":"0"}]
[null,166,{"$f":"'متعقب الدرجات'!C169&COUNTIF('متعقب الدرجات'!$C$4:C169,'متعقب الدرجات'!C169)","v":"0"}]
[null,167,{"$f":"'متعقب الدرجات'!C170&COUNTIF('متعقب الدرجات'!$C$4:C170,'متعقب الدرجات'!C170)","v":"0"}]
[null,168,{"$f":"'متعقب الدرجات'!C171&COUNTIF('متعقب الدرجات'!$C$4:C171,'متعقب الدرجات'!C171)","v":"0"}]
[null,169,{"$f":"'متعقب الدرجات'!C172&COUNTIF('متعقب الدرجات'!$C$4:C172,'متعقب الدرجات'!C172)","v":"0"}]
[null,170,{"$f":"'متعقب الدرجات'!C173&COUNTIF('متعقب الدرجات'!$C$4:C173,'متعقب الدرجات'!C173)","v":"0"}]
[null,171,{"$f":"'متعقب الدرجات'!C174&COUNTIF('متعقب الدرجات'!$C$4:C174,'متعقب الدرجات'!C174)","v":"0"}]
[null,172,{"$f":"'متعقب الدرجات'!C175&COUNTIF('متعقب الدرجات'!$C$4:C175,'متعقب الدرجات'!C175)","v":"0"}]
[null,173,{"$f":"'متعقب الدرجات'!C176&COUNTIF('متعقب الدرجات'!$C$4:C176,'متعقب الدرجات'!C176)","v":"0"}]
[null,174,{"$f":"'متعقب الدرجات'!C177&COUNTIF('متعقب الدرجات'!$C$4:C177,'متعقب الدرجات'!C177)","v":"0"}]
[null,175,{"$f":"'متعقب الدرجات'!C178&COUNTIF('متعقب الدرجات'!$C$4:C178,'متعقب الدرجات'!C178)","v":"0"}]
[null,176,{"$f":"'متعقب الدرجات'!C179&COUNTIF('متعقب الدرجات'!$C$4:C179,'متعقب الدرجات'!C179)","v":"0"}]
[null,177,{"$f":"'متعقب الدرجات'!C180&COUNTIF('متعقب الدرجات'!$C$4:C180,'متعقب الدرجات'!C180)","v":"0"}]
[null,178,{"$f":"'متعقب الدرجات'!C181&COUNTIF('متعقب الدرجات'!$C$4:C181,'متعقب الدرجات'!C181)","v":"0"}]
[null,179,{"$f":"'متعقب الدرجات'!C182&COUNTIF('متعقب الدرجات'!$C$4:C182,'متعقب الدرجات'!C182)","v":"0"}]
[null,180,{"$f":"'متعقب الدرجات'!C183&COUNTIF('متعقب الدرجات'!$C$4:C183,'متعقب الدرجات'!C183)","v":"0"}]
[null,181,{"$f":"'متعقب الدرجات'!C184&COUNTIF('متعقب الدرجات'!$C$4:C184,'متعقب الدرجات'!C184)","v":"0"}]
[null,182,{"$f":"'متعقب الدرجات'!C185&COUNTIF('متعقب الدرجات'!$C$4:C185,'متعقب الدرجات'!C185)","v":"0"}]
[null,183,{"$f":"'متعقب الدرجات'!C186&COUNTIF('متعقب الدرجات'!$C$4:C186,'متعقب الدرجات'!C186)","v":"0"}]
[null,184,{"$f":"'متعقب الدرجات'!C187&COUNTIF('متعقب الدرجات'!$C$4:C187,'متعقب الدرجات'!C187)","v":"0"}]
[null,185,{"$f":"'متعقب الدرجات'!C188&COUNTIF('متعقب الدرجات'!$C$4:C188,'متعقب الدرجات'!C188)","v":"0"}]
[null,186,{"$f":"'متعقب الدرجات'!C189&COUNTIF('متعقب الدرجات'!$C$4:C189,'متعقب الدرجات'!C189)","v":"0"}]
[null,187,{"$f":"'متعقب الدرجات'!C190&COUNTIF('متعقب الدرجات'!$C$4:C190,'متعقب الدرجات'!C190)","v":"0"}]
[null,188,{"$f":"'متعقب الدرجات'!C191&COUNTIF('متعقب الدرجات'!$C$4:C191,'متعقب الدرجات'!C191)","v":"0"}]
[null,189,{"$f":"'متعقب الدرجات'!C192&COUNTIF('متعقب الدرجات'!$C$4:C192,'متعقب الدرجات'!C192)","v":"0"}]
[null,190,{"$f":"'متعقب الدرجات'!C193&COUNTIF('متعقب الدرجات'!$C$4:C193,'متعقب الدرجات'!C193)","v":"0"}]
[null,191,{"$f":"'متعقب الدرجات'!C194&COUNTIF('متعقب الدرجات'!$C$4:C194,'متعقب الدرجات'!C194)","v":"0"}]
[null,192,{"$f":"'متعقب الدرجات'!C195&COUNTIF('متعقب الدرجات'!$C$4:C195,'متعقب الدرجات'!C195)","v":"0"}]
[null,193,{"$f":"'متعقب الدرجات'!C196&COUNTIF('متعقب الدرجات'!$C$4:C196,'متعقب الدرجات'!C196)","v":"0"}]
[null,194,{"$f":"'متعقب الدرجات'!C197&COUNTIF('متعقب الدرجات'!$C$4:C197,'متعقب الدرجات'!C197)","v":"0"}]
[null,195,{"$f":"'متعقب الدرجات'!C198&COUNTIF('متعقب الدرجات'!$C$4:C198,'متعقب الدرجات'!C198)","v":"0"}]
[null,196,{"$f":"'متعقب الدرجات'!C199&COUNTIF('متعقب الدرجات'!$C$4:C199,'متعقب الدرجات'!C199)","v":"0"}]
[null,197,{"$f":"'متعقب الدرجات'!C200&COUNTIF('متعقب الدرجات'!$C$4:C200,'متعقب الدرجات'!C200)","v":"0"}]
[null,198,{"$f":"'متعقب الدرجات'!C201&COUNTIF('متعقب الدرجات'!$C$4:C201,'متعقب الدرجات'!C201)","v":"0"}]
[null,199,{"$f":"'متعقب الدرجات'!C202&COUNTIF('متعقب الدرجات'!$C$4:C202,'متعقب الدرجات'!C202)","v":"0"}]
[null,200,{"$f":"'متعقب الدرجات'!C203&COUNTIF('متعقب الدرجات'!$C$4:C203,'متعقب الدرجات'!C203)","v":"0"}]
[null,201,{"$f":"'متعقب الدرجات'!C204&COUNTIF('متعقب الدرجات'!$C$4:C204,'متعقب الدرجات'!C204)","v":"0"}]
[null,202,{"$f":"'متعقب الدرجات'!C205&COUNTIF('متعقب الدرجات'!$C$4:C205,'متعقب الدرجات'!C205)","v":"0"}]
[null,203,{"$f":"'متعقب الدرجات'!C206&COUNTIF('متعقب الدرجات'!$C$4:C206,'متعقب الدرجات'!C206)","v":"0"}]
[null,204,{"$f":"'متعقب الدرجات'!C207&COUNTIF('متعقب الدرجات'!$C$4:C207,'متعقب الدرجات'!C207)","v":"0"}]
[null,205,{"$f":"'متعقب الدرجات'!C208&COUNTIF('متعقب الدرجات'!$C$4:C208,'متعقب الدرجات'!C208)","v":"0"}]
[null,206,{"$f":"'متعقب الدرجات'!C209&COUNTIF('متعقب الدرجات'!$C$4:C209,'متعقب الدرجات'!C209)","v":"0"}]
[null,207,{"$f":"'متعقب الدرجات'!C210&COUNTIF('متعقب الدرجات'!$C$4:C210,'متعقب الدرجات'!C210)","v":"0"}]
[null,208,{"$f":"'متعقب الدرجات'!C211&COUNTIF('متعقب الدرجات'!$C$4:C211,'متعقب الدرجات'!C211)","v":"0"}]
[null,209,{"$f":"'متعقب الدرجات'!C212&COUNTIF('متعقب الدرجات'!$C$4:C212,'متعقب الدرجات'!C212)","v":"0"}]
[null,210,{"$f":"'متعقب الدرجات'!C213&COUNTIF('متعقب الدرجات'!$C$4:C213,'متعقب الدرجات'!C213)","v":"0"}]
[null,211,{"$f":"'متعقب الدرجات'!C214&COUNTIF('متعقب الدرجات'!$C$4:C214,'متعقب الدرجات'!C214)","v":"0"}]
[null,212,{"$f":"'متعقب الدرجات'!C215&COUNTIF('متعقب الدرجات'!$C$4:C215,'متعقب الدرجات'!C215)","v":"0"}]
[null,213,{"$f":"'متعقب الدرجات'!C216&COUNTIF('متعقب الدرجات'!$C$4:C216,'متعقب الدرجات'!C216)","v":"0"}]
[null,214,{"$f":"'متعقب الدرجات'!C217&COUNTIF('متعقب الدرجات'!$C$4:C217,'متعقب الدرجات'!C217)","v":"0"}]
[null,215,{"$f":"'متعقب الدرجات'!C218&COUNTIF('متعقب الدرجات'!$C$4:C218,'متعقب الدرجات'!C218)","v":"0"}]
[null,216,{"$f":"'متعقب الدرجات'!C219&COUNTIF('متعقب الدرجات'!$C$4:C219,'متعقب الدرجات'!C219)","v":"0"}]
[null,217,{"$f":"'متعقب الدرجات'!C220&COUNTIF('متعقب الدرجات'!$C$4:C220,'متعقب الدرجات'!C220)","v":"0"}]
[null,218,{"$f":"'متعقب الدرجات'!C221&COUNTIF('متعقب الدرجات'!$C$4:C221,'متعقب الدرجات'!C221)","v":"0"}]
[null,219,{"$f":"'متعقب الدرجات'!C222&COUNTIF('متعقب الدرجات'!$C$4:C222,'متعقب الدرجات'!C222)","v":"0"}]
[null,220,{"$f":"'متعقب الدرجات'!C223&COUNTIF('متعقب الدرجات'!$C$4:C223,'متعقب الدرجات'!C223)","v":"0"}]
[null,221,{"$f":"'متعقب الدرجات'!C224&COUNTIF('متعقب الدرجات'!$C$4:C224,'متعقب الدرجات'!C224)","v":"0"}]
[null,222,{"$f":"'متعقب الدرجات'!C225&COUNTIF('متعقب الدرجات'!$C$4:C225,'متعقب الدرجات'!C225)","v":"0"}]
[null,223,{"$f":"'متعقب الدرجات'!C226&COUNTIF('متعقب الدرجات'!$C$4:C226,'متعقب الدرجات'!C226)","v":"0"}]
[null,224,{"$f":"'متعقب الدرجات'!C227&COUNTIF('متعقب الدرجات'!$C$4:C227,'متعقب الدرجات'!C227)","v":"0"}]
[null,225,{"$f":"'متعقب الدرجات'!C228&COUNTIF('متعقب الدرجات'!$C$4:C228,'متعقب الدرجات'!C228)","v":"0"}]
[null,226,{"$f":"'متعقب الدرجات'!C229&COUNTIF('متعقب الدرجات'!$C$4:C229,'متعقب الدرجات'!C229)","v":"0"}]
[null,227,{"$f":"'متعقب الدرجات'!C230&COUNTIF('متعقب الدرجات'!$C$4:C230,'متعقب الدرجات'!C230)","v":"0"}]
[null,228,{"$f":"'متعقب الدرجات'!C231&COUNTIF('متعقب الدرجات'!$C$4:C231,'متعقب الدرجات'!C231)","v":"0"}]
[null,229,{"$f":"'متعقب الدرجات'!C232&COUNTIF('متعقب الدرجات'!$C$4:C232,'متعقب الدرجات'!C232)","v":"0"}]
[null,230,{"$f":"'متعقب الدرجات'!C233&COUNTIF('متعقب الدرجات'!$C$4:C233,'متعقب الدرجات'!C233)","v":"0"}]
[null,231,{"$f":"'متعقب الدرجات'!C234&COUNTIF('متعقب الدرجات'!$C$4:C234,'متعقب الدرجات'!C234)","v":"0"}]
[null,232,{"$f":"'متعقب الدرجات'!C235&COUNTIF('متعقب الدرجات'!$C$4:C235,'متعقب الدرجات'!C235)","v":"0"}]
[null,233,{"$f":"'متعقب الدرجات'!C236&COUNTIF('متعقب الدرجات'!$C$4:C236,'متعقب الدرجات'!C236)","v":"0"}]
[null,234,{"$f":"'متعقب الدرجات'!C237&COUNTIF('متعقب الدرجات'!$C$4:C237,'متعقب الدرجات'!C237)","v":"0"}]
[null,235,{"$f":"'متعقب الدرجات'!C238&COUNTIF('متعقب الدرجات'!$C$4:C238,'متعقب الدرجات'!C238)","v":"0"}]
[null,236,{"$f":"'متعقب الدرجات'!C239&COUNTIF('متعقب الدرجات'!$C$4:C239,'متعقب الدرجات'!C239)","v":"0"}]
[null,237,{"$f":"'متعقب الدرجات'!C240&COUNTIF('متعقب الدرجات'!$C$4:C240,'متعقب الدرجات'!C240)","v":"0"}]
[null,238,{"$f":"'متعقب الدرجات'!C241&COUNTIF('متعقب الدرجات'!$C$4:C241,'متعقب الدرجات'!C241)","v":"0"}]
[null,239,{"$f":"'متعقب الدرجات'!C242&COUNTIF('متعقب الدرجات'!$C$4:C242,'متعقب الدرجات'!C242)","v":"0"}]
[null,240,{"$f":"'متعقب الدرجات'!C243&COUNTIF('متعقب الدرجات'!$C$4:C243,'متعقب الدرجات'!C243)","v":"0"}]
[null,241,{"$f":"'متعقب الدرجات'!C244&COUNTIF('متعقب الدرجات'!$C$4:C244,'متعقب الدرجات'!C244)","v":"0"}]
[null,242,{"$f":"'متعقب الدرجات'!C245&COUNTIF('متعقب الدرجات'!$C$4:C245,'متعقب الدرجات'!C245)","v":"0"}]
[null,243,{"$f":"'متعقب الدرجات'!C246&COUNTIF('متعقب الدرجات'!$C$4:C246,'متعقب الدرجات'!C246)","v":"0"}]
[null,244,{"$f":"'متعقب الدرجات'!C247&COUNTIF('متعقب الدرجات'!$C$4:C247,'متعقب الدرجات'!C247)","v":"0"}]
[null,245,{"$f":"'متعقب الدرجات'!C248&COUNTIF('متعقب الدرجات'!$C$4:C248,'متعقب الدرجات'!C248)","v":"0"}]
[null,246,{"$f":"'متعقب الدرجات'!C249&COUNTIF('متعقب الدرجات'!$C$4:C249,'متعقب الدرجات'!C249)","v":"0"}]
[null,247,{"$f":"'متعقب الدرجات'!C250&COUNTIF('متعقب الدرجات'!$C$4:C250,'متعقب الدرجات'!C250)","v":"0"}]
[null,248,{"$f":"'متعقب الدرجات'!C251&COUNTIF('متعقب الدرجات'!$C$4:C251,'متعقب الدرجات'!C251)","v":"0"}]
[null,249,{"$f":"'متعقب الدرجات'!C252&COUNTIF('متعقب الدرجات'!$C$4:C252,'متعقب الدرجات'!C252)","v":"0"}]
[null,250,{"$f":"'متعقب الدرجات'!C253&COUNTIF('متعقب الدرجات'!$C$4:C253,'متعقب الدرجات'!C253)","v":"0"}]
[null,251,{"$f":"'متعقب الدرجات'!C254&COUNTIF('متعقب الدرجات'!$C$4:C254,'متعقب الدرجات'!C254)","v":"0"}]
[null,252,{"$f":"'متعقب الدرجات'!C255&COUNTIF('متعقب الدرجات'!$C$4:C255,'متعقب الدرجات'!C255)","v":"0"}]
[null,253,{"$f":"'متعقب الدرجات'!C256&COUNTIF('متعقب الدرجات'!$C$4:C256,'متعقب الدرجات'!C256)","v":"0"}]
[null,254,{"$f":"'متعقب الدرجات'!C257&COUNTIF('متعقب الدرجات'!$C$4:C257,'متعقب الدرجات'!C257)","v":"0"}]
[null,255,{"$f":"'متعقب الدرجات'!C258&COUNTIF('متعقب الدرجات'!$C$4:C258,'متعقب الدرجات'!C258)","v":"0"}]
[null,256,{"$f":"'متعقب الدرجات'!C259&COUNTIF('متعقب الدرجات'!$C$4:C259,'متعقب الدرجات'!C259)","v":"0"}]
[null,257,{"$f":"'متعقب الدرجات'!C260&COUNTIF('متعقب الدرجات'!$C$4:C260,'متعقب الدرجات'!C260)","v":"0"}]
[null,258,{"$f":"'متعقب الدرجات'!C261&COUNTIF('متعقب الدرجات'!$C$4:C261,'متعقب الدرجات'!C261)","v":"0"}]
[null,259,{"$f":"'متعقب الدرجات'!C262&COUNTIF('متعقب الدرجات'!$C$4:C262,'متعقب الدرجات'!C262)","v":"0"}]
[null,260,{"$f":"'متعقب الدرجات'!C263&COUNTIF('متعقب الدرجات'!$C$4:C263,'متعقب الدرجات'!C263)","v":"0"}]
[null,261,{"$f":"'متعقب الدرجات'!C264&COUNTIF('متعقب الدرجات'!$C$4:C264,'متعقب الدرجات'!C264)","v":"0"}]
[null,262,{"$f":"'متعقب الدرجات'!C265&COUNTIF('متعقب الدرجات'!$C$4:C265,'متعقب الدرجات'!C265)","v":"0"}]
[null,263,{"$f":"'متعقب الدرجات'!C266&COUNTIF('متعقب الدرجات'!$C$4:C266,'متعقب الدرجات'!C266)","v":"0"}]
[null,264,{"$f":"'متعقب الدرجات'!C267&COUNTIF('متعقب الدرجات'!$C$4:C267,'متعقب الدرجات'!C267)","v":"0"}]
[null,265,{"$f":"'متعقب الدرجات'!C268&COUNTIF('متعقب الدرجات'!$C$4:C268,'متعقب الدرجات'!C268)","v":"0"}]
[null,266,{"$f":"'متعقب الدرجات'!C269&COUNTIF('متعقب الدرجات'!$C$4:C269,'متعقب الدرجات'!C269)","v":"0"}]
[null,267,{"$f":"'متعقب الدرجات'!C270&COUNTIF('متعقب الدرجات'!$C$4:C270,'متعقب الدرجات'!C270)","v":"0"}]
[null,268,{"$f":"'متعقب الدرجات'!C271&COUNTIF('متعقب الدرجات'!$C$4:C271,'متعقب الدرجات'!C271)","v":"0"}]
[null,269,{"$f":"'متعقب الدرجات'!C272&COUNTIF('متعقب الدرجات'!$C$4:C272,'متعقب الدرجات'!C272)","v":"0"}]
[null,270,{"$f":"'متعقب الدرجات'!C273&COUNTIF('متعقب الدرجات'!$C$4:C273,'متعقب الدرجات'!C273)","v":"0"}]
[null,271,{"$f":"'متعقب الدرجات'!C274&COUNTIF('متعقب الدرجات'!$C$4:C274,'متعقب الدرجات'!C274)","v":"0"}]
[null,272,{"$f":"'متعقب الدرجات'!C275&COUNTIF('متعقب الدرجات'!$C$4:C275,'متعقب الدرجات'!C275)","v":"0"}]
[null,273,{"$f":"'متعقب الدرجات'!C276&COUNTIF('متعقب الدرجات'!$C$4:C276,'متعقب الدرجات'!C276)","v":"0"}]
[null,274,{"$f":"'متعقب الدرجات'!C277&COUNTIF('متعقب الدرجات'!$C$4:C277,'متعقب الدرجات'!C277)","v":"0"}]
[null,275,{"$f":"'متعقب الدرجات'!C278&COUNTIF('متعقب الدرجات'!$C$4:C278,'متعقب الدرجات'!C278)","v":"0"}]
[null,276,{"$f":"'متعقب الدرجات'!C279&COUNTIF('متعقب الدرجات'!$C$4:C279,'متعقب الدرجات'!C279)","v":"0"}]
[null,277,{"$f":"'متعقب الدرجات'!C280&COUNTIF('متعقب الدرجات'!$C$4:C280,'متعقب الدرجات'!C280)","v":"0"}]
[null,278,{"$f":"'متعقب الدرجات'!C281&COUNTIF('متعقب الدرجات'!$C$4:C281,'متعقب الدرجات'!C281)","v":"0"}]
[null,279,{"$f":"'متعقب الدرجات'!C282&COUNTIF('متعقب الدرجات'!$C$4:C282,'متعقب الدرجات'!C282)","v":"0"}]
[null,280,{"$f":"'متعقب الدرجات'!C283&COUNTIF('متعقب الدرجات'!$C$4:C283,'متعقب الدرجات'!C283)","v":"0"}]
[null,281,{"$f":"'متعقب الدرجات'!C284&COUNTIF('متعقب الدرجات'!$C$4:C284,'متعقب الدرجات'!C284)","v":"0"}]
[null,282,{"$f":"'متعقب الدرجات'!C285&COUNTIF('متعقب الدرجات'!$C$4:C285,'متعقب الدرجات'!C285)","v":"0"}]
[null,283,{"$f":"'متعقب الدرجات'!C286&COUNTIF('متعقب الدرجات'!$C$4:C286,'متعقب الدرجات'!C286)","v":"0"}]
[null,284,{"$f":"'متعقب الدرجات'!C287&COUNTIF('متعقب الدرجات'!$C$4:C287,'متعقب الدرجات'!C287)","v":"0"}]
[null,285,{"$f":"'متعقب الدرجات'!C288&COUNTIF('متعقب الدرجات'!$C$4:C288,'متعقب الدرجات'!C288)","v":"0"}]
[null,286,{"$f":"'متعقب الدرجات'!C289&COUNTIF('متعقب الدرجات'!$C$4:C289,'متعقب الدرجات'!C289)","v":"0"}]
[null,287,{"$f":"'متعقب الدرجات'!C290&COUNTIF('متعقب الدرجات'!$C$4:C290,'متعقب الدرجات'!C290)","v":"0"}]
[null,288,{"$f":"'متعقب الدرجات'!C291&COUNTIF('متعقب الدرجات'!$C$4:C291,'متعقب الدرجات'!C291)","v":"0"}]
[null,289,{"$f":"'متعقب الدرجات'!C292&COUNTIF('متعقب الدرجات'!$C$4:C292,'متعقب الدرجات'!C292)","v":"0"}]
[null,290,{"$f":"'متعقب الدرجات'!C293&COUNTIF('متعقب الدرجات'!$C$4:C293,'متعقب الدرجات'!C293)","v":"0"}]
[null,291,{"$f":"'متعقب الدرجات'!C294&COUNTIF('متعقب الدرجات'!$C$4:C294,'متعقب الدرجات'!C294)","v":"0"}]
[null,292,{"$f":"'متعقب الدرجات'!C295&COUNTIF('متعقب الدرجات'!$C$4:C295,'متعقب الدرجات'!C295)","v":"0"}]
[null,293,{"$f":"'متعقب الدرجات'!C296&COUNTIF('متعقب الدرجات'!$C$4:C296,'متعقب الدرجات'!C296)","v":"0"}]
[null,294,{"$f":"'متعقب الدرجات'!C297&COUNTIF('متعقب الدرجات'!$C$4:C297,'متعقب الدرجات'!C297)","v":"0"}]
[null,295,{"$f":"'متعقب الدرجات'!C298&COUNTIF('متعقب الدرجات'!$C$4:C298,'متعقب الدرجات'!C298)","v":"0"}]
[null,296,{"$f":"'متعقب الدرجات'!C299&COUNTIF('متعقب الدرجات'!$C$4:C299,'متعقب الدرجات'!C299)","v":"0"}]
[null,297,{"$f":"'متعقب الدرجات'!C300&COUNTIF('متعقب الدرجات'!$C$4:C300,'متعقب الدرجات'!C300)","v":"0"}]
[null,298,{"$f":"'متعقب الدرجات'!C301&COUNTIF('متعقب الدرجات'!$C$4:C301,'متعقب الدرجات'!C301)","v":"0"}]
[null,299,{"$f":"'متعقب الدرجات'!C302&COUNTIF('متعقب الدرجات'!$C$4:C302,'متعقب الدرجات'!C302)","v":"0"}]
[null,300,{"$f":"'متعقب الدرجات'!C303&COUNTIF('متعقب الدرجات'!$C$4:C303,'متعقب الدرجات'!C303)","v":"0"}]
[null,301,{"$f":"'متعقب الدرجات'!C304&COUNTIF('متعقب الدرجات'!$C$4:C304,'متعقب الدرجات'!C304)","v":"0"}]
[null,302,{"$f":"'متعقب الدرجات'!C305&COUNTIF('متعقب الدرجات'!$C$4:C305,'متعقب الدرجات'!C305)","v":"0"}]
[null,303,{"$f":"'متعقب الدرجات'!C306&COUNTIF('متعقب الدرجات'!$C$4:C306,'متعقب الدرجات'!C306)","v":"0"}]
[null,304,{"$f":"'متعقب الدرجات'!C307&COUNTIF('متعقب الدرجات'!$C$4:C307,'متعقب الدرجات'!C307)","v":"0"}]
[null,305,{"$f":"'متعقب الدرجات'!C308&COUNTIF('متعقب الدرجات'!$C$4:C308,'متعقب الدرجات'!C308)","v":"0"}]
[null,306,{"$f":"'متعقب الدرجات'!C309&COUNTIF('متعقب الدرجات'!$C$4:C309,'متعقب الدرجات'!C309)","v":"0"}]
[null,307,{"$f":"'متعقب الدرجات'!C310&COUNTIF('متعقب الدرجات'!$C$4:C310,'متعقب الدرجات'!C310)","v":"0"}]
[null,308,{"$f":"'متعقب الدرجات'!C311&COUNTIF('متعقب الدرجات'!$C$4:C311,'متعقب الدرجات'!C311)","v":"0"}]
[null,309,{"$f":"'متعقب الدرجات'!C312&COUNTIF('متعقب الدرجات'!$C$4:C312,'متعقب الدرجات'!C312)","v":"0"}]
[null,310,{"$f":"'متعقب الدرجات'!C313&COUNTIF('متعقب الدرجات'!$C$4:C313,'متعقب الدرجات'!C313)","v":"0"}]
[null,311,{"$f":"'متعقب الدرجات'!C314&COUNTIF('متعقب الدرجات'!$C$4:C314,'متعقب الدرجات'!C314)","v":"0"}]
[null,312,{"$f":"'متعقب الدرجات'!C315&COUNTIF('متعقب الدرجات'!$C$4:C315,'متعقب الدرجات'!C315)","v":"0"}]
[null,313,{"$f":"'متعقب الدرجات'!C316&COUNTIF('متعقب الدرجات'!$C$4:C316,'متعقب الدرجات'!C316)","v":"0"}]
[null,314,{"$f":"'متعقب الدرجات'!C317&COUNTIF('متعقب الدرجات'!$C$4:C317,'متعقب الدرجات'!C317)","v":"0"}]
[null,315,{"$f":"'متعقب الدرجات'!C318&COUNTIF('متعقب الدرجات'!$C$4:C318,'متعقب الدرجات'!C318)","v":"0"}]
[null,316,{"$f":"'متعقب الدرجات'!C319&COUNTIF('متعقب الدرجات'!$C$4:C319,'متعقب الدرجات'!C319)","v":"0"}]
[null,317,{"$f":"'متعقب الدرجات'!C320&COUNTIF('متعقب الدرجات'!$C$4:C320,'متعقب الدرجات'!C320)","v":"0"}]
[null,318,{"$f":"'متعقب الدرجات'!C321&COUNTIF('متعقب الدرجات'!$C$4:C321,'متعقب الدرجات'!C321)","v":"0"}]
[null,319,{"$f":"'متعقب الدرجات'!C322&COUNTIF('متعقب الدرجات'!$C$4:C322,'متعقب الدرجات'!C322)","v":"0"}]
[null,320,{"$f":"'متعقب الدرجات'!C323&COUNTIF('متعقب الدرجات'!$C$4:C323,'متعقب الدرجات'!C323)","v":"0"}]
[null,321,{"$f":"'متعقب الدرجات'!C324&COUNTIF('متعقب الدرجات'!$C$4:C324,'متعقب الدرجات'!C324)","v":"0"}]
[null,322,{"$f":"'متعقب الدرجات'!C325&COUNTIF('متعقب الدرجات'!$C$4:C325,'متعقب الدرجات'!C325)","v":"0"}]
[null,323,{"$f":"'متعقب الدرجات'!C326&COUNTIF('متعقب الدرجات'!$C$4:C326,'متعقب الدرجات'!C326)","v":"0"}]
[null,324,{"$f":"'متعقب الدرجات'!C327&COUNTIF('متعقب الدرجات'!$C$4:C327,'متعقب الدرجات'!C327)","v":"0"}]
[null,325,{"$f":"'متعقب الدرجات'!C328&COUNTIF('متعقب الدرجات'!$C$4:C328,'متعقب الدرجات'!C328)","v":"0"}]
[null,326,{"$f":"'متعقب الدرجات'!C329&COUNTIF('متعقب الدرجات'!$C$4:C329,'متعقب الدرجات'!C329)","v":"0"}]
[null,327,{"$f":"'متعقب الدرجات'!C330&COUNTIF('متعقب الدرجات'!$C$4:C330,'متعقب الدرجات'!C330)","v":"0"}]
[null,328,{"$f":"'متعقب الدرجات'!C331&COUNTIF('متعقب الدرجات'!$C$4:C331,'متعقب الدرجات'!C331)","v":"0"}]
[null,329,{"$f":"'متعقب الدرجات'!C332&COUNTIF('متعقب الدرجات'!$C$4:C332,'متعقب الدرجات'!C332)","v":"0"}]
[null,330,{"$f":"'متعقب الدرجات'!C333&COUNTIF('متعقب الدرجات'!$C$4:C333,'متعقب الدرجات'!C333)","v":"0"}]
[null,331,{"$f":"'متعقب الدرجات'!C334&COUNTIF('متعقب الدرجات'!$C$4:C334,'متعقب الدرجات'!C334)","v":"0"}]
[null,332,{"$f":"'متعقب الدرجات'!C335&COUNTIF('متعقب الدرجات'!$C$4:C335,'متعقب الدرجات'!C335)","v":"0"}]
[null,333,{"$f":"'متعقب الدرجات'!C336&COUNTIF('متعقب الدرجات'!$C$4:C336,'متعقب الدرجات'!C336)","v":"0"}]
[null,334,{"$f":"'متعقب الدرجات'!C337&COUNTIF('متعقب الدرجات'!$C$4:C337,'متعقب الدرجات'!C337)","v":"0"}]
[null,335,{"$f":"'متعقب الدرجات'!C338&COUNTIF('متعقب الدرجات'!$C$4:C338,'متعقب الدرجات'!C338)","v":"0"}]
[null,336,{"$f":"'متعقب الدرجات'!C339&COUNTIF('متعقب الدرجات'!$C$4:C339,'متعقب الدرجات'!C339)","v":"0"}]
[null,337,{"$f":"'متعقب الدرجات'!C340&COUNTIF('متعقب الدرجات'!$C$4:C340,'متعقب الدرجات'!C340)","v":"0"}]
[null,338,{"$f":"'متعقب الدرجات'!C341&COUNTIF('متعقب الدرجات'!$C$4:C341,'متعقب الدرجات'!C341)","v":"0"}]
[null,339,{"$f":"'متعقب الدرجات'!C342&COUNTIF('متعقب الدرجات'!$C$4:C342,'متعقب الدرجات'!C342)","v":"0"}]
[null,340,{"$f":"'متعقب الدرجات'!C343&COUNTIF('متعقب الدرجات'!$C$4:C343,'متعقب الدرجات'!C343)","v":"0"}]
[null,341,{"$f":"'متعقب الدرجات'!C344&COUNTIF('متعقب الدرجات'!$C$4:C344,'متعقب الدرجات'!C344)","v":"0"}]
[null,342,{"$f":"'متعقب الدرجات'!C345&COUNTIF('متعقب الدرجات'!$C$4:C345,'متعقب الدرجات'!C345)","v":"0"}]
[null,343,{"$f":"'متعقب الدرجات'!C346&COUNTIF('متعقب الدرجات'!$C$4:C346,'متعقب الدرجات'!C346)","v":"0"}]
[null,344,{"$f":"'متعقب الدرجات'!C347&COUNTIF('متعقب الدرجات'!$C$4:C347,'متعقب الدرجات'!C347)","v":"0"}]
[null,345,{"$f":"'متعقب الدرجات'!C348&COUNTIF('متعقب الدرجات'!$C$4:C348,'متعقب الدرجات'!C348)","v":"0"}]
[null,346,{"$f":"'متعقب الدرجات'!C349&COUNTIF('متعقب الدرجات'!$C$4:C349,'متعقب الدرجات'!C349)","v":"0"}]
[null,347,{"$f":"'متعقب الدرجات'!C350&COUNTIF('متعقب الدرجات'!$C$4:C350,'متعقب الدرجات'!C350)","v":"0"}]
[null,348,{"$f":"'متعقب الدرجات'!C351&COUNTIF('متعقب الدرجات'!$C$4:C351,'متعقب الدرجات'!C351)","v":"0"}]
[null,349,{"$f":"'متعقب الدرجات'!C352&COUNTIF('متعقب الدرجات'!$C$4:C352,'متعقب الدرجات'!C352)","v":"0"}]
[null,350,{"$f":"'متعقب الدرجات'!C353&COUNTIF('متعقب الدرجات'!$C$4:C353,'متعقب الدرجات'!C353)","v":"0"}]
[null,351,{"$f":"'متعقب الدرجات'!C354&COUNTIF('متعقب الدرجات'!$C$4:C354,'متعقب الدرجات'!C354)","v":"0"}]
[null,352,{"$f":"'متعقب الدرجات'!C355&COUNTIF('متعقب الدرجات'!$C$4:C355,'متعقب الدرجات'!C355)","v":"0"}]
[null,353,{"$f":"'متعقب الدرجات'!C356&COUNTIF('متعقب الدرجات'!$C$4:C356,'متعقب الدرجات'!C356)","v":"0"}]
[null,354,{"$f":"'متعقب الدرجات'!C357&COUNTIF('متعقب الدرجات'!$C$4:C357,'متعقب الدرجات'!C357)","v":"0"}]
[null,355,{"$f":"'متعقب الدرجات'!C358&COUNTIF('متعقب الدرجات'!$C$4:C358,'متعقب الدرجات'!C358)","v":"0"}]
[null,356,{"$f":"'متعقب الدرجات'!C359&COUNTIF('متعقب الدرجات'!$C$4:C359,'متعقب الدرجات'!C359)","v":"0"}]
[null,357,{"$f":"'متعقب الدرجات'!C360&COUNTIF('متعقب الدرجات'!$C$4:C360,'متعقب الدرجات'!C360)","v":"0"}]
[null,358,{"$f":"'متعقب الدرجات'!C361&COUNTIF('متعقب الدرجات'!$C$4:C361,'متعقب الدرجات'!C361)","v":"0"}]
[null,359,{"$f":"'متعقب الدرجات'!C362&COUNTIF('متعقب الدرجات'!$C$4:C362,'متعقب الدرجات'!C362)","v":"0"}]
[null,360,{"$f":"'متعقب الدرجات'!C363&COUNTIF('متعقب الدرجات'!$C$4:C363,'متعقب الدرجات'!C363)","v":"0"}]
[null,361,{"$f":"'متعقب الدرجات'!C364&COUNTIF('متعقب الدرجات'!$C$4:C364,'متعقب الدرجات'!C364)","v":"0"}]
[null,362,{"$f":"'متعقب الدرجات'!C365&COUNTIF('متعقب الدرجات'!$C$4:C365,'متعقب الدرجات'!C365)","v":"0"}]
[null,363,{"$f":"'متعقب الدرجات'!C366&COUNTIF('متعقب الدرجات'!$C$4:C366,'متعقب الدرجات'!C366)","v":"0"}]
[null,364,{"$f":"'متعقب الدرجات'!C367&COUNTIF('متعقب الدرجات'!$C$4:C367,'متعقب الدرجات'!C367)","v":"0"}]
[null,365,{"$f":"'متعقب الدرجات'!C368&COUNTIF('متعقب الدرجات'!$C$4:C368,'متعقب الدرجات'!C368)","v":"0"}]
[null,366,{"$f":"'متعقب الدرجات'!C369&COUNTIF('متعقب الدرجات'!$C$4:C369,'متعقب الدرجات'!C369)","v":"0"}]
[null,367,{"$f":"'متعقب الدرجات'!C370&COUNTIF('متعقب الدرجات'!$C$4:C370,'متعقب الدرجات'!C370)","v":"0"}]
[null,368,{"$f":"'متعقب الدرجات'!C371&COUNTIF('متعقب الدرجات'!$C$4:C371,'متعقب الدرجات'!C371)","v":"0"}]
[null,369,{"$f":"'متعقب الدرجات'!C372&COUNTIF('متعقب الدرجات'!$C$4:C372,'متعقب الدرجات'!C372)","v":"0"}]
[null,370,{"$f":"'متعقب الدرجات'!C373&COUNTIF('متعقب الدرجات'!$C$4:C373,'متعقب الدرجات'!C373)","v":"0"}]
[null,371,{"$f":"'متعقب الدرجات'!C374&COUNTIF('متعقب الدرجات'!$C$4:C374,'متعقب الدرجات'!C374)","v":"0"}]
[null,372,{"$f":"'متعقب الدرجات'!C375&COUNTIF('متعقب الدرجات'!$C$4:C375,'متعقب الدرجات'!C375)","v":"0"}]
[null,373,{"$f":"'متعقب الدرجات'!C376&COUNTIF('متعقب الدرجات'!$C$4:C376,'متعقب الدرجات'!C376)","v":"0"}]
[null,374,{"$f":"'متعقب الدرجات'!C377&COUNTIF('متعقب الدرجات'!$C$4:C377,'متعقب الدرجات'!C377)","v":"0"}]
[null,375,{"$f":"'متعقب الدرجات'!C378&COUNTIF('متعقب الدرجات'!$C$4:C378,'متعقب الدرجات'!C378)","v":"0"}]
[null,376,{"$f":"'متعقب الدرجات'!C379&COUNTIF('متعقب الدرجات'!$C$4:C379,'متعقب الدرجات'!C379)","v":"0"}]
[null,377,{"$f":"'متعقب الدرجات'!C380&COUNTIF('متعقب الدرجات'!$C$4:C380,'متعقب الدرجات'!C380)","v":"0"}]
[null,378,{"$f":"'متعقب الدرجات'!C381&COUNTIF('متعقب الدرجات'!$C$4:C381,'متعقب الدرجات'!C381)","v":"0"}]
[null,379,{"$f":"'متعقب الدرجات'!C382&COUNTIF('متعقب الدرجات'!$C$4:C382,'متعقب الدرجات'!C382)","v":"0"}]
[null,380,{"$f":"'متعقب الدرجات'!C383&COUNTIF('متعقب الدرجات'!$C$4:C383,'متعقب الدرجات'!C383)","v":"0"}]
[null,381,{"$f":"'متعقب الدرجات'!C384&COUNTIF('متعقب الدرجات'!$C$4:C384,'متعقب الدرجات'!C384)","v":"0"}]
[null,382,{"$f":"'متعقب الدرجات'!C385&COUNTIF('متعقب الدرجات'!$C$4:C385,'متعقب الدرجات'!C385)","v":"0"}]
[null,383,{"$f":"'متعقب الدرجات'!C386&COUNTIF('متعقب الدرجات'!$C$4:C386,'متعقب الدرجات'!C386)","v":"0"}]
[null,384,{"$f":"'متعقب الدرجات'!C387&COUNTIF('متعقب الدرجات'!$C$4:C387,'متعقب الدرجات'!C387)","v":"0"}]
[null,385,{"$f":"'متعقب الدرجات'!C388&COUNTIF('متعقب الدرجات'!$C$4:C388,'متعقب الدرجات'!C388)","v":"0"}]
[null,386,{"$f":"'متعقب الدرجات'!C389&COUNTIF('متعقب الدرجات'!$C$4:C389,'متعقب الدرجات'!C389)","v":"0"}]
[null,387,{"$f":"'متعقب الدرجات'!C390&COUNTIF('متعقب الدرجات'!$C$4:C390,'متعقب الدرجات'!C390)","v":"0"}]
[null,388,{"$f":"'متعقب الدرجات'!C391&COUNTIF('متعقب الدرجات'!$C$4:C391,'متعقب الدرجات'!C391)","v":"0"}]
[null,389,{"$f":"'متعقب الدرجات'!C392&COUNTIF('متعقب الدرجات'!$C$4:C392,'متعقب الدرجات'!C392)","v":"0"}]
[null,390,{"$f":"'متعقب الدرجات'!C393&COUNTIF('متعقب الدرجات'!$C$4:C393,'متعقب الدرجات'!C393)","v":"0"}]
[null,391,{"$f":"'متعقب الدرجات'!C394&COUNTIF('متعقب الدرجات'!$C$4:C394,'متعقب الدرجات'!C394)","v":"0"}]
[null,392,{"$f":"'متعقب الدرجات'!C395&COUNTIF('متعقب الدرجات'!$C$4:C395,'متعقب الدرجات'!C395)","v":"0"}]
[null,393,{"$f":"'متعقب الدرجات'!C396&COUNTIF('متعقب الدرجات'!$C$4:C396,'متعقب الدرجات'!C396)","v":"0"}]
[null,394,{"$f":"'متعقب الدرجات'!C397&COUNTIF('متعقب الدرجات'!$C$4:C397,'متعقب الدرجات'!C397)","v":"0"}]
[null,395,{"$f":"'متعقب الدرجات'!C398&COUNTIF('متعقب الدرجات'!$C$4:C398,'متعقب الدرجات'!C398)","v":"0"}]
[null,396,{"$f":"'متعقب الدرجات'!C399&COUNTIF('متعقب الدرجات'!$C$4:C399,'متعقب الدرجات'!C399)","v":"0"}]
[null,397,{"$f":"'متعقب الدرجات'!C400&COUNTIF('متعقب الدرجات'!$C$4:C400,'متعقب الدرجات'!C400)","v":"0"}]
[null,398,{"$f":"'متعقب الدرجات'!C401&COUNTIF('متعقب الدرجات'!$C$4:C401,'متعقب الدرجات'!C401)","v":"0"}]
[null,399,{"$f":"'متعقب الدرجات'!C402&COUNTIF('متعقب الدرجات'!$C$4:C402,'متعقب الدرجات'!C402)","v":"0"}]
[null,400,{"$f":"'متعقب الدرجات'!C403&COUNTIF('متعقب الدرجات'!$C$4:C403,'متعقب الدرجات'!C403)","v":"0"}]
[null,401,{"$f":"'متعقب الدرجات'!C404&COUNTIF('متعقب الدرجات'!$C$4:C404,'متعقب الدرجات'!C404)","v":"0"}]
[null,402,{"$f":"'متعقب الدرجات'!C405&COUNTIF('متعقب الدرجات'!$C$4:C405,'متعقب الدرجات'!C405)","v":"0"}]
[null,403,{"$f":"'متعقب الدرجات'!C406&COUNTIF('متعقب الدرجات'!$C$4:C406,'متعقب الدرجات'!C406)","v":"0"}]
[null,404,{"$f":"'متعقب الدرجات'!C407&COUNTIF('متعقب الدرجات'!$C$4:C407,'متعقب الدرجات'!C407)","v":"0"}]
[null,405,{"$f":"'متعقب الدرجات'!C408&COUNTIF('متعقب الدرجات'!$C$4:C408,'متعقب الدرجات'!C408)","v":"0"}]
[null,406,{"$f":"'متعقب الدرجات'!C409&COUNTIF('متعقب الدرجات'!$C$4:C409,'متعقب الدرجات'!C409)","v":"0"}]
[null,407,{"$f":"'متعقب الدرجات'!C410&COUNTIF('متعقب الدرجات'!$C$4:C410,'متعقب الدرجات'!C410)","v":"0"}]
[null,408,{"$f":"'متعقب الدرجات'!C411&COUNTIF('متعقب الدرجات'!$C$4:C411,'متعقب الدرجات'!C411)","v":"0"}]
[null,409,{"$f":"'متعقب الدرجات'!C412&COUNTIF('متعقب الدرجات'!$C$4:C412,'متعقب الدرجات'!C412)","v":"0"}]
[null,410,{"$f":"'متعقب الدرجات'!C413&COUNTIF('متعقب الدرجات'!$C$4:C413,'متعقب الدرجات'!C413)","v":"0"}]
[null,411,{"$f":"'متعقب الدرجات'!C414&COUNTIF('متعقب الدرجات'!$C$4:C414,'متعقب الدرجات'!C414)","v":"0"}]
[null,412,{"$f":"'متعقب الدرجات'!C415&COUNTIF('متعقب الدرجات'!$C$4:C415,'متعقب الدرجات'!C415)","v":"0"}]
[null,413,{"$f":"'متعقب الدرجات'!C416&COUNTIF('متعقب الدرجات'!$C$4:C416,'متعقب الدرجات'!C416)","v":"0"}]
[null,414,{"$f":"'متعقب الدرجات'!C417&COUNTIF('متعقب الدرجات'!$C$4:C417,'متعقب الدرجات'!C417)","v":"0"}]
[null,415,{"$f":"'متعقب الدرجات'!C418&COUNTIF('متعقب الدرجات'!$C$4:C418,'متعقب الدرجات'!C418)","v":"0"}]
[null,416,{"$f":"'متعقب الدرجات'!C419&COUNTIF('متعقب الدرجات'!$C$4:C419,'متعقب الدرجات'!C419)","v":"0"}]
[null,417,{"$f":"'متعقب الدرجات'!C420&COUNTIF('متعقب الدرجات'!$C$4:C420,'متعقب الدرجات'!C420)","v":"0"}]
[null,418,{"$f":"'متعقب الدرجات'!C421&COUNTIF('متعقب الدرجات'!$C$4:C421,'متعقب الدرجات'!C421)","v":"0"}]
[null,419,{"$f":"'متعقب الدرجات'!C422&COUNTIF('متعقب الدرجات'!$C$4:C422,'متعقب الدرجات'!C422)","v":"0"}]
[null,420,{"$f":"'متعقب الدرجات'!C423&COUNTIF('متعقب الدرجات'!$C$4:C423,'متعقب الدرجات'!C423)","v":"0"}]
[null,421,{"$f":"'متعقب الدرجات'!C424&COUNTIF('متعقب الدرجات'!$C$4:C424,'متعقب الدرجات'!C424)","v":"0"}]
[null,422,{"$f":"'متعقب الدرجات'!C425&COUNTIF('متعقب الدرجات'!$C$4:C425,'متعقب الدرجات'!C425)","v":"0"}]
[null,423,{"$f":"'متعقب الدرجات'!C426&COUNTIF('متعقب الدرجات'!$C$4:C426,'متعقب الدرجات'!C426)","v":"0"}]
[null,424,{"$f":"'متعقب الدرجات'!C427&COUNTIF('متعقب الدرجات'!$C$4:C427,'متعقب الدرجات'!C427)","v":"0"}]
[null,425,{"$f":"'متعقب الدرجات'!C428&COUNTIF('متعقب الدرجات'!$C$4:C428,'متعقب الدرجات'!C428)","v":"0"}]
[null,426,{"$f":"'متعقب الدرجات'!C429&COUNTIF('متعقب الدرجات'!$C$4:C429,'متعقب الدرجات'!C429)","v":"0"}]
[null,427,{"$f":"'متعقب الدرجات'!C430&COUNTIF('متعقب الدرجات'!$C$4:C430,'متعقب الدرجات'!C430)","v":"0"}]
[null,428,{"$f":"'متعقب الدرجات'!C431&COUNTIF('متعقب الدرجات'!$C$4:C431,'متعقب الدرجات'!C431)","v":"0"}]
[null,429,{"$f":"'متعقب الدرجات'!C432&COUNTIF('متعقب الدرجات'!$C$4:C432,'متعقب الدرجات'!C432)","v":"0"}]
[null,430,{"$f":"'متعقب الدرجات'!C433&COUNTIF('متعقب الدرجات'!$C$4:C433,'متعقب الدرجات'!C433)","v":"0"}]
[null,431,{"$f":"'متعقب الدرجات'!C434&COUNTIF('متعقب الدرجات'!$C$4:C434,'متعقب الدرجات'!C434)","v":"0"}]
[null,432,{"$f":"'متعقب الدرجات'!C435&COUNTIF('متعقب الدرجات'!$C$4:C435,'متعقب الدرجات'!C435)","v":"0"}]
[null,433,{"$f":"'متعقب الدرجات'!C436&COUNTIF('متعقب الدرجات'!$C$4:C436,'متعقب الدرجات'!C436)","v":"0"}]
[null,434,{"$f":"'متعقب الدرجات'!C437&COUNTIF('متعقب الدرجات'!$C$4:C437,'متعقب الدرجات'!C437)","v":"0"}]
[null,435,{"$f":"'متعقب الدرجات'!C438&COUNTIF('متعقب الدرجات'!$C$4:C438,'متعقب الدرجات'!C438)","v":"0"}]
[null,436,{"$f":"'متعقب الدرجات'!C439&COUNTIF('متعقب الدرجات'!$C$4:C439,'متعقب الدرجات'!C439)","v":"0"}]
[null,437,{"$f":"'متعقب الدرجات'!C440&COUNTIF('متعقب الدرجات'!$C$4:C440,'متعقب الدرجات'!C440)","v":"0"}]
[null,438,{"$f":"'متعقب الدرجات'!C441&COUNTIF('متعقب الدرجات'!$C$4:C441,'متعقب الدرجات'!C441)","v":"0"}]
[null,439,{"$f":"'متعقب الدرجات'!C442&COUNTIF('متعقب الدرجات'!$C$4:C442,'متعقب الدرجات'!C442)","v":"0"}]
[null,440,{"$f":"'متعقب الدرجات'!C443&COUNTIF('متعقب الدرجات'!$C$4:C443,'متعقب الدرجات'!C443)","v":"0"}]
[null,441,{"$f":"'متعقب الدرجات'!C444&COUNTIF('متعقب الدرجات'!$C$4:C444,'متعقب الدرجات'!C444)","v":"0"}]
[null,442,{"$f":"'متعقب الدرجات'!C445&COUNTIF('متعقب الدرجات'!$C$4:C445,'متعقب الدرجات'!C445)","v":"0"}]
[null,443,{"$f":"'متعقب الدرجات'!C446&COUNTIF('متعقب الدرجات'!$C$4:C446,'متعقب الدرجات'!C446)","v":"0"}]
[null,444,{"$f":"'متعقب الدرجات'!C447&COUNTIF('متعقب الدرجات'!$C$4:C447,'متعقب الدرجات'!C447)","v":"0"}]
[null,445,{"$f":"'متعقب الدرجات'!C448&COUNTIF('متعقب الدرجات'!$C$4:C448,'متعقب الدرجات'!C448)","v":"0"}]
[null,446,{"$f":"'متعقب الدرجات'!C449&COUNTIF('متعقب الدرجات'!$C$4:C449,'متعقب الدرجات'!C449)","v":"0"}]
[null,447,{"$f":"'متعقب الدرجات'!C450&COUNTIF('متعقب الدرجات'!$C$4:C450,'متعقب الدرجات'!C450)","v":"0"}]
[null,448,{"$f":"'متعقب الدرجات'!C451&COUNTIF('متعقب الدرجات'!$C$4:C451,'متعقب الدرجات'!C451)","v":"0"}]
[null,449,{"$f":"'متعقب الدرجات'!C452&COUNTIF('متعقب الدرجات'!$C$4:C452,'متعقب الدرجات'!C452)","v":"0"}]
[null,450,{"$f":"'متعقب الدرجات'!C453&COUNTIF('متعقب الدرجات'!$C$4:C453,'متعقب الدرجات'!C453)","v":"0"}]
[null,451,{"$f":"'متعقب الدرجات'!C454&COUNTIF('متعقب الدرجات'!$C$4:C454,'متعقب الدرجات'!C454)","v":"0"}]
[null,452,{"$f":"'متعقب الدرجات'!C455&COUNTIF('متعقب الدرجات'!$C$4:C455,'متعقب الدرجات'!C455)","v":"0"}]
[null,453,{"$f":"'متعقب الدرجات'!C456&COUNTIF('متعقب الدرجات'!$C$4:C456,'متعقب الدرجات'!C456)","v":"0"}]
[null,454,{"$f":"'متعقب الدرجات'!C457&COUNTIF('متعقب الدرجات'!$C$4:C457,'متعقب الدرجات'!C457)","v":"0"}]
[null,455,{"$f":"'متعقب الدرجات'!C458&COUNTIF('متعقب الدرجات'!$C$4:C458,'متعقب الدرجات'!C458)","v":"0"}]
[null,456,{"$f":"'متعقب الدرجات'!C459&COUNTIF('متعقب الدرجات'!$C$4:C459,'متعقب الدرجات'!C459)","v":"0"}]
[null,457,{"$f":"'متعقب الدرجات'!C460&COUNTIF('متعقب الدرجات'!$C$4:C460,'متعقب الدرجات'!C460)","v":"0"}]
[null,458,{"$f":"'متعقب الدرجات'!C461&COUNTIF('متعقب الدرجات'!$C$4:C461,'متعقب الدرجات'!C461)","v":"0"}]
[null,459,{"$f":"'متعقب الدرجات'!C462&COUNTIF('متعقب الدرجات'!$C$4:C462,'متعقب الدرجات'!C462)","v":"0"}]
[null,460,{"$f":"'متعقب الدرجات'!C463&COUNTIF('متعقب الدرجات'!$C$4:C463,'متعقب الدرجات'!C463)","v":"0"}]
[null,461,{"$f":"'متعقب الدرجات'!C464&COUNTIF('متعقب الدرجات'!$C$4:C464,'متعقب الدرجات'!C464)","v":"0"}]
[null,462,{"$f":"'متعقب الدرجات'!C465&COUNTIF('متعقب الدرجات'!$C$4:C465,'متعقب الدرجات'!C465)","v":"0"}]
[null,463,{"$f":"'متعقب الدرجات'!C466&COUNTIF('متعقب الدرجات'!$C$4:C466,'متعقب الدرجات'!C466)","v":"0"}]
[null,464,{"$f":"'متعقب الدرجات'!C467&COUNTIF('متعقب الدرجات'!$C$4:C467,'متعقب الدرجات'!C467)","v":"0"}]
[null,465,{"$f":"'متعقب الدرجات'!C468&COUNTIF('متعقب الدرجات'!$C$4:C468,'متعقب الدرجات'!C468)","v":"0"}]
[null,466,{"$f":"'متعقب الدرجات'!C469&COUNTIF('متعقب الدرجات'!$C$4:C469,'متعقب الدرجات'!C469)","v":"0"}]
[null,467,{"$f":"'متعقب الدرجات'!C470&COUNTIF('متعقب الدرجات'!$C$4:C470,'متعقب الدرجات'!C470)","v":"0"}]
[null,468,{"$f":"'متعقب الدرجات'!C471&COUNTIF('متعقب الدرجات'!$C$4:C471,'متعقب الدرجات'!C471)","v":"0"}]
[null,469,{"$f":"'متعقب الدرجات'!C472&COUNTIF('متعقب الدرجات'!$C$4:C472,'متعقب الدرجات'!C472)","v":"0"}]
[null,470,{"$f":"'متعقب الدرجات'!C473&COUNTIF('متعقب الدرجات'!$C$4:C473,'متعقب الدرجات'!C473)","v":"0"}]
[null,471,{"$f":"'متعقب الدرجات'!C474&COUNTIF('متعقب الدرجات'!$C$4:C474,'متعقب الدرجات'!C474)","v":"0"}]
[null,472,{"$f":"'متعقب الدرجات'!C475&COUNTIF('متعقب الدرجات'!$C$4:C475,'متعقب الدرجات'!C475)","v":"0"}]
[null,473,{"$f":"'متعقب الدرجات'!C476&COUNTIF('متعقب الدرجات'!$C$4:C476,'متعقب الدرجات'!C476)","v":"0"}]
[null,474,{"$f":"'متعقب الدرجات'!C477&COUNTIF('متعقب الدرجات'!$C$4:C477,'متعقب الدرجات'!C477)","v":"0"}]
[null,475,{"$f":"'متعقب الدرجات'!C478&COUNTIF('متعقب الدرجات'!$C$4:C478,'متعقب الدرجات'!C478)","v":"0"}]
[null,476,{"$f":"'متعقب الدرجات'!C479&COUNTIF('متعقب الدرجات'!$C$4:C479,'متعقب الدرجات'!C479)","v":"0"}]
[null,477,{"$f":"'متعقب الدرجات'!C480&COUNTIF('متعقب الدرجات'!$C$4:C480,'متعقب الدرجات'!C480)","v":"0"}]
[null,478,{"$f":"'متعقب الدرجات'!C481&COUNTIF('متعقب الدرجات'!$C$4:C481,'متعقب الدرجات'!C481)","v":"0"}]
[null,479,{"$f":"'متعقب الدرجات'!C482&COUNTIF('متعقب الدرجات'!$C$4:C482,'متعقب الدرجات'!C482)","v":"0"}]
[null,480,{"$f":"'متعقب الدرجات'!C483&COUNTIF('متعقب الدرجات'!$C$4:C483,'متعقب الدرجات'!C483)","v":"0"}]
[null,481,{"$f":"'متعقب الدرجات'!C484&COUNTIF('متعقب الدرجات'!$C$4:C484,'متعقب الدرجات'!C484)","v":"0"}]
[null,482,{"$f":"'متعقب الدرجات'!C485&COUNTIF('متعقب الدرجات'!$C$4:C485,'متعقب الدرجات'!C485)","v":"0"}]
[null,483,{"$f":"'متعقب الدرجات'!C486&COUNTIF('متعقب الدرجات'!$C$4:C486,'متعقب الدرجات'!C486)","v":"0"}]
[null,484,{"$f":"'متعقب الدرجات'!C487&COUNTIF('متعقب الدرجات'!$C$4:C487,'متعقب الدرجات'!C487)","v":"0"}]
[null,485,{"$f":"'متعقب الدرجات'!C488&COUNTIF('متعقب الدرجات'!$C$4:C488,'متعقب الدرجات'!C488)","v":"0"}]
[null,486,{"$f":"'متعقب الدرجات'!C489&COUNTIF('متعقب الدرجات'!$C$4:C489,'متعقب الدرجات'!C489)","v":"0"}]
[null,487,{"$f":"'متعقب الدرجات'!C490&COUNTIF('متعقب الدرجات'!$C$4:C490,'متعقب الدرجات'!C490)","v":"0"}]
[null,488,{"$f":"'متعقب الدرجات'!C491&COUNTIF('متعقب الدرجات'!$C$4:C491,'متعقب الدرجات'!C491)","v":"0"}]
[null,489,{"$f":"'متعقب الدرجات'!C492&COUNTIF('متعقب الدرجات'!$C$4:C492,'متعقب الدرجات'!C492)","v":"0"}]
[null,490,{"$f":"'متعقب الدرجات'!C493&COUNTIF('متعقب الدرجات'!$C$4:C493,'متعقب الدرجات'!C493)","v":"0"}]
[null,491,{"$f":"'متعقب الدرجات'!C494&COUNTIF('متعقب الدرجات'!$C$4:C494,'متعقب الدرجات'!C494)","v":"0"}]
[null,492,{"$f":"'متعقب الدرجات'!C495&COUNTIF('متعقب الدرجات'!$C$4:C495,'متعقب الدرجات'!C495)","v":"0"}]
[null,493,{"$f":"'متعقب الدرجات'!C496&COUNTIF('متعقب الدرجات'!$C$4:C496,'متعقب الدرجات'!C496)","v":"0"}]
[null,494,{"$f":"'متعقب الدرجات'!C497&COUNTIF('متعقب الدرجات'!$C$4:C497,'متعقب الدرجات'!C497)","v":"0"}]
[null,495,{"$f":"'متعقب الدرجات'!C498&COUNTIF('متعقب الدرجات'!$C$4:C498,'متعقب الدرجات'!C498)","v":"0"}]
[null,496,{"$f":"'متعقب الدرجات'!C499&COUNTIF('متعقب الدرجات'!$C$4:C499,'متعقب الدرجات'!C499)","v":"0"}]
[null,497,{"$f":"'متعقب الدرجات'!C500&COUNTIF('متعقب الدرجات'!$C$4:C500,'متعقب الدرجات'!C500)","v":"0"}]
[null,498,{"$f":"'متعقب الدرجات'!C501&COUNTIF('متعقب الدرجات'!$C$4:C501,'متعقب الدرجات'!C501)","v":"0"}]
[null,499,{"$f":"'متعقب الدرجات'!C502&COUNTIF('متعقب الدرجات'!$C$4:C502,'متعقب الدرجات'!C502)","v":"0"}]
[null,500,{"$f":"'متعقب الدرجات'!C503&COUNTIF('متعقب الدرجات'!$C$4:C503,'متعقب الدرجات'!C503)","v":"0"}]
[null,501,{"$f":"'متعقب الدرجات'!C504&COUNTIF('متعقب الدرجات'!$C$4:C504,'متعقب الدرجات'!C504)","v":"0"}]
[null,502,{"$f":"'متعقب الدرجات'!C505&COUNTIF('متعقب الدرجات'!$C$4:C505,'متعقب الدرجات'!C505)","v":"0"}]
[null,503,{"$f":"'متعقب الدرجات'!C506&COUNTIF('متعقب الدرجات'!$C$4:C506,'متعقب الدرجات'!C506)","v":"0"}]
[null,504,{"$f":"'متعقب الدرجات'!C507&COUNTIF('متعقب الدرجات'!$C$4:C507,'متعقب الدرجات'!C507)","v":"0"}]
[null,505,{"$f":"'متعقب الدرجات'!C508&COUNTIF('متعقب الدرجات'!$C$4:C508,'متعقب الدرجات'!C508)","v":"0"}]
[null,506,{"$f":"'متعقب الدرجات'!C509&COUNTIF('متعقب الدرجات'!$C$4:C509,'متعقب الدرجات'!C509)","v":"0"}]
[null,507,{"$f":"'متعقب الدرجات'!C510&COUNTIF('متعقب الدرجات'!$C$4:C510,'متعقب الدرجات'!C510)","v":"0"}]
[null,508,{"$f":"'متعقب الدرجات'!C511&COUNTIF('متعقب الدرجات'!$C$4:C511,'متعقب الدرجات'!C511)","v":"0"}]
[null,509,{"$f":"'متعقب الدرجات'!C512&COUNTIF('متعقب الدرجات'!$C$4:C512,'متعقب الدرجات'!C512)","v":"0"}]
[null,510,{"$f":"'متعقب الدرجات'!C513&COUNTIF('متعقب الدرجات'!$C$4:C513,'متعقب الدرجات'!C513)","v":"0"}]
[null,511,{"$f":"'متعقب الدرجات'!C514&COUNTIF('متعقب الدرجات'!$C$4:C514,'متعقب الدرجات'!C514)","v":"0"}]
[null,512,{"$f":"'متعقب الدرجات'!C515&COUNTIF('متعقب الدرجات'!$C$4:C515,'متعقب الدرجات'!C515)","v":"0"}]
[null,513,{"$f":"'متعقب الدرجات'!C516&COUNTIF('متعقب الدرجات'!$C$4:C516,'متعقب الدرجات'!C516)","v":"0"}]
[null,514,{"$f":"'متعقب الدرجات'!C517&COUNTIF('متعقب الدرجات'!$C$4:C517,'متعقب الدرجات'!C517)","v":"0"}]
[null,515,{"$f":"'متعقب الدرجات'!C518&COUNTIF('متعقب الدرجات'!$C$4:C518,'متعقب الدرجات'!C518)","v":"0"}]
[null,516,{"$f":"'متعقب الدرجات'!C519&COUNTIF('متعقب الدرجات'!$C$4:C519,'متعقب الدرجات'!C519)","v":"0"}]
[null,517,{"$f":"'متعقب الدرجات'!C520&COUNTIF('متعقب الدرجات'!$C$4:C520,'متعقب الدرجات'!C520)","v":"0"}]
[null,518,{"$f":"'متعقب الدرجات'!C521&COUNTIF('متعقب الدرجات'!$C$4:C521,'متعقب الدرجات'!C521)","v":"0"}]
[null,519,{"$f":"'متعقب الدرجات'!C522&COUNTIF('متعقب الدرجات'!$C$4:C522,'متعقب الدرجات'!C522)","v":"0"}]
[null,520,{"$f":"'متعقب الدرجات'!C523&COUNTIF('متعقب الدرجات'!$C$4:C523,'متعقب الدرجات'!C523)","v":"0"}]
[null,521,{"$f":"'متعقب الدرجات'!C524&COUNTIF('متعقب الدرجات'!$C$4:C524,'متعقب الدرجات'!C524)","v":"0"}]
[null,522,{"$f":"'متعقب الدرجات'!C525&COUNTIF('متعقب الدرجات'!$C$4:C525,'متعقب الدرجات'!C525)","v":"0"}]
[null,523,{"$f":"'متعقب الدرجات'!C526&COUNTIF('متعقب الدرجات'!$C$4:C526,'متعقب الدرجات'!C526)","v":"0"}]
[null,524,{"$f":"'متعقب الدرجات'!C527&COUNTIF('متعقب الدرجات'!$C$4:C527,'متعقب الدرجات'!C527)","v":"0"}]
[null,525,{"$f":"'متعقب الدرجات'!C528&COUNTIF('متعقب الدرجات'!$C$4:C528,'متعقب الدرجات'!C528)","v":"0"}]
[null,526,{"$f":"'متعقب الدرجات'!C529&COUNTIF('متعقب الدرجات'!$C$4:C529,'متعقب الدرجات'!C529)","v":"0"}]
[null,527,{"$f":"'متعقب الدرجات'!C530&COUNTIF('متعقب الدرجات'!$C$4:C530,'متعقب الدرجات'!C530)","v":"0"}]
[null,528,{"$f":"'متعقب الدرجات'!C531&COUNTIF('متعقب الدرجات'!$C$4:C531,'متعقب الدرجات'!C531)","v":"0"}]
[null,529,{"$f":"'متعقب الدرجات'!C532&COUNTIF('متعقب الدرجات'!$C$4:C532,'متعقب الدرجات'!C532)","v":"0"}]
[null,530,{"$f":"'متعقب الدرجات'!C533&COUNTIF('متعقب الدرجات'!$C$4:C533,'متعقب الدرجات'!C533)","v":"0"}]
[null,531,{"$f":"'متعقب الدرجات'!C534&COUNTIF('متعقب الدرجات'!$C$4:C534,'متعقب الدرجات'!C534)","v":"0"}]
[null,532,{"$f":"'متعقب الدرجات'!C535&COUNTIF('متعقب الدرجات'!$C$4:C535,'متعقب الدرجات'!C535)","v":"0"}]
[null,533,{"$f":"'متعقب الدرجات'!C536&COUNTIF('متعقب الدرجات'!$C$4:C536,'متعقب الدرجات'!C536)","v":"0"}]
[null,534,{"$f":"'متعقب الدرجات'!C537&COUNTIF('متعقب الدرجات'!$C$4:C537,'متعقب الدرجات'!C537)","v":"0"}]
[null,535,{"$f":"'متعقب الدرجات'!C538&COUNTIF('متعقب الدرجات'!$C$4:C538,'متعقب الدرجات'!C538)","v":"0"}]
[null,536,{"$f":"'متعقب الدرجات'!C539&COUNTIF('متعقب الدرجات'!$C$4:C539,'متعقب الدرجات'!C539)","v":"0"}]
[null,537,{"$f":"'متعقب الدرجات'!C540&COUNTIF('متعقب الدرجات'!$C$4:C540,'متعقب الدرجات'!C540)","v":"0"}]
[null,538,{"$f":"'متعقب الدرجات'!C541&COUNTIF('متعقب الدرجات'!$C$4:C541,'متعقب الدرجات'!C541)","v":"0"}]
[null,539,{"$f":"'متعقب الدرجات'!C542&COUNTIF('متعقب الدرجات'!$C$4:C542,'متعقب الدرجات'!C542)","v":"0"}]
[null,540,{"$f":"'متعقب الدرجات'!C543&COUNTIF('متعقب الدرجات'!$C$4:C543,'متعقب الدرجات'!C543)","v":"0"}]
[null,541,{"$f":"'متعقب الدرجات'!C544&COUNTIF('متعقب الدرجات'!$C$4:C544,'متعقب الدرجات'!C544)","v":"0"}]
[null,542,{"$f":"'متعقب الدرجات'!C545&COUNTIF('متعقب الدرجات'!$C$4:C545,'متعقب الدرجات'!C545)","v":"0"}]
[null,543,{"$f":"'متعقب الدرجات'!C546&COUNTIF('متعقب الدرجات'!$C$4:C546,'متعقب الدرجات'!C546)","v":"0"}]
[null,544,{"$f":"'متعقب الدرجات'!C547&COUNTIF('متعقب الدرجات'!$C$4:C547,'متعقب الدرجات'!C547)","v":"0"}]
[null,545,{"$f":"'متعقب الدرجات'!C548&COUNTIF('متعقب الدرجات'!$C$4:C548,'متعقب الدرجات'!C548)","v":"0"}]
[null,546,{"$f":"'متعقب الدرجات'!C549&COUNTIF('متعقب الدرجات'!$C$4:C549,'متعقب الدرجات'!C549)","v":"0"}]
[null,547,{"$f":"'متعقب الدرجات'!C550&COUNTIF('متعقب الدرجات'!$C$4:C550,'متعقب الدرجات'!C550)","v":"0"}]
[null,548,{"$f":"'متعقب الدرجات'!C551&COUNTIF('متعقب الدرجات'!$C$4:C551,'متعقب الدرجات'!C551)","v":"0"}]
[null,549,{"$f":"'متعقب الدرجات'!C552&COUNTIF('متعقب الدرجات'!$C$4:C552,'متعقب الدرجات'!C552)","v":"0"}]
[null,550,{"$f":"'متعقب الدرجات'!C553&COUNTIF('متعقب الدرجات'!$C$4:C553,'متعقب الدرجات'!C553)","v":"0"}]
[null,551,{"$f":"'متعقب الدرجات'!C554&COUNTIF('متعقب الدرجات'!$C$4:C554,'متعقب الدرجات'!C554)","v":"0"}]
[null,552,{"$f":"'متعقب الدرجات'!C555&COUNTIF('متعقب الدرجات'!$C$4:C555,'متعقب الدرجات'!C555)","v":"0"}]
[null,553,{"$f":"'متعقب الدرجات'!C556&COUNTIF('متعقب الدرجات'!$C$4:C556,'متعقب الدرجات'!C556)","v":"0"}]
[null,554,{"$f":"'متعقب الدرجات'!C557&COUNTIF('متعقب الدرجات'!$C$4:C557,'متعقب الدرجات'!C557)","v":"0"}]
[null,555,{"$f":"'متعقب الدرجات'!C558&COUNTIF('متعقب الدرجات'!$C$4:C558,'متعقب الدرجات'!C558)","v":"0"}]
[null,556,{"$f":"'متعقب الدرجات'!C559&COUNTIF('متعقب الدرجات'!$C$4:C559,'متعقب الدرجات'!C559)","v":"0"}]
[null,557,{"$f":"'متعقب الدرجات'!C560&COUNTIF('متعقب الدرجات'!$C$4:C560,'متعقب الدرجات'!C560)","v":"0"}]
[null,558,{"$f":"'متعقب الدرجات'!C561&COUNTIF('متعقب الدرجات'!$C$4:C561,'متعقب الدرجات'!C561)","v":"0"}]
[null,559,{"$f":"'متعقب الدرجات'!C562&COUNTIF('متعقب الدرجات'!$C$4:C562,'متعقب الدرجات'!C562)","v":"0"}]
[null,560,{"$f":"'متعقب الدرجات'!C563&COUNTIF('متعقب الدرجات'!$C$4:C563,'متعقب الدرجات'!C563)","v":"0"}]
[null,561,{"$f":"'متعقب الدرجات'!C564&COUNTIF('متعقب الدرجات'!$C$4:C564,'متعقب الدرجات'!C564)","v":"0"}]
[null,562,{"$f":"'متعقب الدرجات'!C565&COUNTIF('متعقب الدرجات'!$C$4:C565,'متعقب الدرجات'!C565)","v":"0"}]
[null,563,{"$f":"'متعقب الدرجات'!C566&COUNTIF('متعقب الدرجات'!$C$4:C566,'متعقب الدرجات'!C566)","v":"0"}]
[null,564,{"$f":"'متعقب الدرجات'!C567&COUNTIF('متعقب الدرجات'!$C$4:C567,'متعقب الدرجات'!C567)","v":"0"}]
[null,565,{"$f":"'متعقب الدرجات'!C568&COUNTIF('متعقب الدرجات'!$C$4:C568,'متعقب الدرجات'!C568)","v":"0"}]
[null,566,{"$f":"'متعقب الدرجات'!C569&COUNTIF('متعقب الدرجات'!$C$4:C569,'متعقب الدرجات'!C569)","v":"0"}]
[null,567,{"$f":"'متعقب الدرجات'!C570&COUNTIF('متعقب الدرجات'!$C$4:C570,'متعقب الدرجات'!C570)","v":"0"}]
[null,568,{"$f":"'متعقب الدرجات'!C571&COUNTIF('متعقب الدرجات'!$C$4:C571,'متعقب الدرجات'!C571)","v":"0"}]
[null,569,{"$f":"'متعقب الدرجات'!C572&COUNTIF('متعقب الدرجات'!$C$4:C572,'متعقب الدرجات'!C572)","v":"0"}]
[null,570,{"$f":"'متعقب الدرجات'!C573&COUNTIF('متعقب الدرجات'!$C$4:C573,'متعقب الدرجات'!C573)","v":"0"}]
[null,571,{"$f":"'متعقب الدرجات'!C574&COUNTIF('متعقب الدرجات'!$C$4:C574,'متعقب الدرجات'!C574)","v":"0"}]
[null,572,{"$f":"'متعقب الدرجات'!C575&COUNTIF('متعقب الدرجات'!$C$4:C575,'متعقب الدرجات'!C575)","v":"0"}]
[null,573,{"$f":"'متعقب الدرجات'!C576&COUNTIF('متعقب الدرجات'!$C$4:C576,'متعقب الدرجات'!C576)","v":"0"}]
[null,574,{"$f":"'متعقب الدرجات'!C577&COUNTIF('متعقب الدرجات'!$C$4:C577,'متعقب الدرجات'!C577)","v":"0"}]
[null,575,{"$f":"'متعقب الدرجات'!C578&COUNTIF('متعقب الدرجات'!$C$4:C578,'متعقب الدرجات'!C578)","v":"0"}]
[null,576,{"$f":"'متعقب الدرجات'!C579&COUNTIF('متعقب الدرجات'!$C$4:C579,'متعقب الدرجات'!C579)","v":"0"}]
[null,577,{"$f":"'متعقب الدرجات'!C580&COUNTIF('متعقب الدرجات'!$C$4:C580,'متعقب الدرجات'!C580)","v":"0"}]
[null,578,{"$f":"'متعقب الدرجات'!C581&COUNTIF('متعقب الدرجات'!$C$4:C581,'متعقب الدرجات'!C581)","v":"0"}]
[null,579,{"$f":"'متعقب الدرجات'!C582&COUNTIF('متعقب الدرجات'!$C$4:C582,'متعقب الدرجات'!C582)","v":"0"}]
[null,580,{"$f":"'متعقب الدرجات'!C583&COUNTIF('متعقب الدرجات'!$C$4:C583,'متعقب الدرجات'!C583)","v":"0"}]
[null,581,{"$f":"'متعقب الدرجات'!C584&COUNTIF('متعقب الدرجات'!$C$4:C584,'متعقب الدرجات'!C584)","v":"0"}]
[null,582,{"$f":"'متعقب الدرجات'!C585&COUNTIF('متعقب الدرجات'!$C$4:C585,'متعقب الدرجات'!C585)","v":"0"}]
[null,583,{"$f":"'متعقب الدرجات'!C586&COUNTIF('متعقب الدرجات'!$C$4:C586,'متعقب الدرجات'!C586)","v":"0"}]
[null,584,{"$f":"'متعقب الدرجات'!C587&COUNTIF('متعقب الدرجات'!$C$4:C587,'متعقب الدرجات'!C587)","v":"0"}]
[null,585,{"$f":"'متعقب الدرجات'!C588&COUNTIF('متعقب الدرجات'!$C$4:C588,'متعقب الدرجات'!C588)","v":"0"}]
[null,586,{"$f":"'متعقب الدرجات'!C589&COUNTIF('متعقب الدرجات'!$C$4:C589,'متعقب الدرجات'!C589)","v":"0"}]
[null,587,{"$f":"'متعقب الدرجات'!C590&COUNTIF('متعقب الدرجات'!$C$4:C590,'متعقب الدرجات'!C590)","v":"0"}]
[null,588,{"$f":"'متعقب الدرجات'!C591&COUNTIF('متعقب الدرجات'!$C$4:C591,'متعقب الدرجات'!C591)","v":"0"}]
[null,589,{"$f":"'متعقب الدرجات'!C592&COUNTIF('متعقب الدرجات'!$C$4:C592,'متعقب الدرجات'!C592)","v":"0"}]
[null,590,{"$f":"'متعقب الدرجات'!C593&COUNTIF('متعقب الدرجات'!$C$4:C593,'متعقب الدرجات'!C593)","v":"0"}]
[null,591,{"$f":"'متعقب الدرجات'!C594&COUNTIF('متعقب الدرجات'!$C$4:C594,'متعقب الدرجات'!C594)","v":"0"}]
[null,592,{"$f":"'متعقب الدرجات'!C595&COUNTIF('متعقب الدرجات'!$C$4:C595,'متعقب الدرجات'!C595)","v":"0"}]
[null,593,{"$f":"'متعقب الدرجات'!C596&COUNTIF('متعقب الدرجات'!$C$4:C596,'متعقب الدرجات'!C596)","v":"0"}]
[null,594,{"$f":"'متعقب الدرجات'!C597&COUNTIF('متعقب الدرجات'!$C$4:C597,'متعقب الدرجات'!C597)","v":"0"}]
[null,595,{"$f":"'متعقب الدرجات'!C598&COUNTIF('متعقب الدرجات'!$C$4:C598,'متعقب الدرجات'!C598)","v":"0"}]
[null,596,{"$f":"'متعقب الدرجات'!C599&COUNTIF('متعقب الدرجات'!$C$4:C599,'متعقب الدرجات'!C599)","v":"0"}]
[null,597,{"$f":"'متعقب الدرجات'!C600&COUNTIF('متعقب الدرجات'!$C$4:C600,'متعقب الدرجات'!C600)","v":"0"}]
[null,598,{"$f":"'متعقب الدرجات'!C601&COUNTIF('متعقب الدرجات'!$C$4:C601,'متعقب الدرجات'!C601)","v":"0"}]
[null,599,{"$f":"'متعقب الدرجات'!C602&COUNTIF('متعقب الدرجات'!$C$4:C602,'متعقب الدرجات'!C602)","v":"0"}]
[null,600,{"$f":"'متعقب الدرجات'!C603&COUNTIF('متعقب الدرجات'!$C$4:C603,'متعقب الدرجات'!C603)","v":"0"}]
[null,601,{"$f":"'متعقب الدرجات'!C604&COUNTIF('متعقب الدرجات'!$C$4:C604,'متعقب الدرجات'!C604)","v":"0"}]
[null,602,{"$f":"'متعقب الدرجات'!C605&COUNTIF('متعقب الدرجات'!$C$4:C605,'متعقب الدرجات'!C605)","v":"0"}]
[null,603,{"$f":"'متعقب الدرجات'!C606&COUNTIF('متعقب الدرجات'!$C$4:C606,'متعقب الدرجات'!C606)","v":"0"}]
[null,604,{"$f":"'متعقب الدرجات'!C607&COUNTIF('متعقب الدرجات'!$C$4:C607,'متعقب الدرجات'!C607)","v":"0"}]
[null,605,{"$f":"'متعقب الدرجات'!C608&COUNTIF('متعقب الدرجات'!$C$4:C608,'متعقب الدرجات'!C608)","v":"0"}]
[null,606,{"$f":"'متعقب الدرجات'!C609&COUNTIF('متعقب الدرجات'!$C$4:C609,'متعقب الدرجات'!C609)","v":"0"}]
[null,607,{"$f":"'متعقب الدرجات'!C610&COUNTIF('متعقب الدرجات'!$C$4:C610,'متعقب الدرجات'!C610)","v":"0"}]
[null,608,{"$f":"'متعقب الدرجات'!C611&COUNTIF('متعقب الدرجات'!$C$4:C611,'متعقب الدرجات'!C611)","v":"0"}]
[null,609,{"$f":"'متعقب الدرجات'!C612&COUNTIF('متعقب الدرجات'!$C$4:C612,'متعقب الدرجات'!C612)","v":"0"}]
[null,610,{"$f":"'متعقب الدرجات'!C613&COUNTIF('متعقب الدرجات'!$C$4:C613,'متعقب الدرجات'!C613)","v":"0"}]
[null,611,{"$f":"'متعقب الدرجات'!C614&COUNTIF('متعقب الدرجات'!$C$4:C614,'متعقب الدرجات'!C614)","v":"0"}]
[null,612,{"$f":"'متعقب الدرجات'!C615&COUNTIF('متعقب الدرجات'!$C$4:C615,'متعقب الدرجات'!C615)","v":"0"}]
[null,613,{"$f":"'متعقب الدرجات'!C616&COUNTIF('متعقب الدرجات'!$C$4:C616,'متعقب الدرجات'!C616)","v":"0"}]
[null,614,{"$f":"'متعقب الدرجات'!C617&COUNTIF('متعقب الدرجات'!$C$4:C617,'متعقب الدرجات'!C617)","v":"0"}]
[null,615,{"$f":"'متعقب الدرجات'!C618&COUNTIF('متعقب الدرجات'!$C$4:C618,'متعقب الدرجات'!C618)","v":"0"}]
[null,616,{"$f":"'متعقب الدرجات'!C619&COUNTIF('متعقب الدرجات'!$C$4:C619,'متعقب الدرجات'!C619)","v":"0"}]
[null,617,{"$f":"'متعقب الدرجات'!C620&COUNTIF('متعقب الدرجات'!$C$4:C620,'متعقب الدرجات'!C620)","v":"0"}]
[null,618,{"$f":"'متعقب الدرجات'!C621&COUNTIF('متعقب الدرجات'!$C$4:C621,'متعقب الدرجات'!C621)","v":"0"}]
[null,619,{"$f":"'متعقب الدرجات'!C622&COUNTIF('متعقب الدرجات'!$C$4:C622,'متعقب الدرجات'!C622)","v":"0"}]
[null,620,{"$f":"'متعقب الدرجات'!C623&COUNTIF('متعقب الدرجات'!$C$4:C623,'متعقب الدرجات'!C623)","v":"0"}]
[null,621,{"$f":"'متعقب الدرجات'!C624&COUNTIF('متعقب الدرجات'!$C$4:C624,'متعقب الدرجات'!C624)","v":"0"}]
[null,622,{"$f":"'متعقب الدرجات'!C625&COUNTIF('متعقب الدرجات'!$C$4:C625,'متعقب الدرجات'!C625)","v":"0"}]
[null,623,{"$f":"'متعقب الدرجات'!C626&COUNTIF('متعقب الدرجات'!$C$4:C626,'متعقب الدرجات'!C626)","v":"0"}]
[null,624,{"$f":"'متعقب الدرجات'!C627&COUNTIF('متعقب الدرجات'!$C$4:C627,'متعقب الدرجات'!C627)","v":"0"}]
[null,625,{"$f":"'متعقب الدرجات'!C628&COUNTIF('متعقب الدرجات'!$C$4:C628,'متعقب الدرجات'!C628)","v":"0"}]